Department family,Entity,Date,Expense type,Expense area,Supplier,Transaction number,Amount
Department of Health,Leicestershire Partnership NHS Trust,01/07/22,Nurse - Band 6 -Agency,AMH - Central Access Point,HCL NURSING,HNSI0001069,2555.12
Department of Health,Leicestershire Partnership NHS Trust,01/07/22,Nurse - Band 6 -Agency,Adult County West Leicestershire CMHT,HCL NURSING,HNSI0001069,2159.87
Department of Health,Leicestershire Partnership NHS Trust,01/07/22,Nurse - Band 6 -Agency,Adult County- East Leicester CMHT,HCL NURSING,HNSI0001069,1414.73
Department of Health,Leicestershire Partnership NHS Trust,01/07/22,NURSE - BAND 2 - AGENCY,Agnes Unit,HCL NURSING,HNSI0001069,23356.83
Department of Health,Leicestershire Partnership NHS Trust,01/07/22,NURSE - BAND 5 - AGENCY,Agnes Unit,HCL NURSING,HNSI0001069,19394.16
Department of Health,Leicestershire Partnership NHS Trust,01/07/22,NURSE - BAND 2 - AGENCY,Ashby Ward (Bradgate Unit),HCL NURSING,HNSI0001069,9647.87
Department of Health,Leicestershire Partnership NHS Trust,01/07/22,NURSE - BAND 5 - AGENCY,Ashby Ward (Bradgate Unit),HCL NURSING,HNSI0001069,16917.14
Department of Health,Leicestershire Partnership NHS Trust,01/07/22,NURSE - BAND 2 - AGENCY,Beaumont Ward - Bradgate Unit,HCL NURSING,HNSI0001069,4820.46
Department of Health,Leicestershire Partnership NHS Trust,01/07/22,NURSE - BAND 5 - AGENCY,Beaumont Ward - Bradgate Unit,HCL NURSING,HNSI0001069,6451.71
Department of Health,Leicestershire Partnership NHS Trust,01/07/22,NURSE - BAND 2 - AGENCY,Belvoir Psychiatric Intensive Care Unit,HCL NURSING,HNSI0001069,3759.43
Department of Health,Leicestershire Partnership NHS Trust,01/07/22,NURSE - BAND 5 - AGENCY,Belvoir Psychiatric Intensive Care Unit,HCL NURSING,HNSI0001069,3136.32
Department of Health,Leicestershire Partnership NHS Trust,01/07/22,NURSE - BAND 2 - AGENCY,Bosworth Ward - Bradgate Unit,HCL NURSING,HNSI0001069,5415.07
Department of Health,Leicestershire Partnership NHS Trust,01/07/22,NURSE - BAND 5 - AGENCY,Bosworth Ward - Bradgate Unit,HCL NURSING,HNSI0001069,6859.65
Department of Health,Leicestershire Partnership NHS Trust,01/07/22,NURSE - BAND 2 - AGENCY,Cedar (Willows),HCL NURSING,HNSI0001069,3091.45
Department of Health,Leicestershire Partnership NHS Trust,01/07/22,NURSE - BAND 5 - AGENCY,Cedar (Willows),HCL NURSING,HNSI0001069,1488.99
Department of Health,Leicestershire Partnership NHS Trust,01/07/22,NURSE - BAND 2 - AGENCY,Coleman Ward,HCL NURSING,HNSI0001069,6845.28
Department of Health,Leicestershire Partnership NHS Trust,01/07/22,NURSE - BAND 5 - AGENCY,Coleman Ward,HCL NURSING,HNSI0001069,5270.35
Department of Health,Leicestershire Partnership NHS Trust,01/07/22,NURSE - BAND 5 - AGENCY,Crisis Resolution,HCL NURSING,HNSI0001069,2657.91
Department of Health,Leicestershire Partnership NHS Trust,01/07/22,NURSE - BAND 2 - AGENCY,Griffin Ward (HPC),HCL NURSING,HNSI0001069,5169.77
Department of Health,Leicestershire Partnership NHS Trust,01/07/22,NURSE - BAND 5 - AGENCY,Griffin Ward (HPC),HCL NURSING,HNSI0001069,1361.40
Department of Health,Leicestershire Partnership NHS Trust,01/07/22,NURSE - BAND 2 - AGENCY,Heather Ward,HCL NURSING,HNSI0001069,2972.21
Department of Health,Leicestershire Partnership NHS Trust,01/07/22,NURSE - BAND 5 - AGENCY,Heather Ward,HCL NURSING,HNSI0001069,3463.94
Department of Health,Leicestershire Partnership NHS Trust,01/07/22,NURSE - BAND 2 - AGENCY,Kirby Ward,HCL NURSING,HNSI0001069,8626.75
Department of Health,Leicestershire Partnership NHS Trust,01/07/22,NURSE - BAND 5 - AGENCY,Kirby Ward,HCL NURSING,HNSI0001069,474.41
Department of Health,Leicestershire Partnership NHS Trust,01/07/22,NURSE - BAND 2 - AGENCY,Maple Ward,HCL NURSING,HNSI0001069,5598.51
Department of Health,Leicestershire Partnership NHS Trust,01/07/22,NURSE - BAND 5 - AGENCY,Maple Ward,HCL NURSING,HNSI0001069,2604.84
Department of Health,Leicestershire Partnership NHS Trust,01/07/22,Nurse - Band 6 -Agency,Mental Health Liaison Team,HCL NURSING,HNSI0001069,1790.10
Department of Health,Leicestershire Partnership NHS Trust,01/07/22,NURSE - BAND 2 - AGENCY,Mill Lodge,HCL NURSING,HNSI0001069,5508.21
Department of Health,Leicestershire Partnership NHS Trust,01/07/22,NURSE - BAND 5 - AGENCY,Mill Lodge,HCL NURSING,HNSI0001069,6770.56
Department of Health,Leicestershire Partnership NHS Trust,01/07/22,NURSE - BAND 2 - AGENCY,Phoenix Ward (HPC),HCL NURSING,HNSI0001069,11098.33
Department of Health,Leicestershire Partnership NHS Trust,01/07/22,NURSE - BAND 5 - AGENCY,Phoenix Ward (HPC),HCL NURSING,HNSI0001069,1022.80
Department of Health,Leicestershire Partnership NHS Trust,01/07/22,NURSE - BAND 5 - AGENCY,Place Of Safety Assessment Unit,HCL NURSING,HNSI0001069,4445.30
Department of Health,Leicestershire Partnership NHS Trust,01/07/22,NURSE - BAND 2 - AGENCY,Stewart House,HCL NURSING,HNSI0001069,2156.60
Department of Health,Leicestershire Partnership NHS Trust,01/07/22,NURSE - BAND 5 - AGENCY,Stewart House,HCL NURSING,HNSI0001069,4152.69
Department of Health,Leicestershire Partnership NHS Trust,01/07/22,NURSE - BAND 2 - AGENCY,Sycamore (Willows),HCL NURSING,HNSI0001069,5872.97
Department of Health,Leicestershire Partnership NHS Trust,01/07/22,NURSE - BAND 5 - AGENCY,Sycamore (Willows),HCL NURSING,HNSI0001069,8027.96
Department of Health,Leicestershire Partnership NHS Trust,01/07/22,NURSE - BAND 2 - AGENCY,Thornton Ward - Bradgate Unit,HCL NURSING,HNSI0001069,1830.78
Department of Health,Leicestershire Partnership NHS Trust,01/07/22,NURSE - BAND 5 - AGENCY,Thornton Ward - Bradgate Unit,HCL NURSING,HNSI0001069,1110.96
Department of Health,Leicestershire Partnership NHS Trust,01/07/22,NURSE - BAND 2 - AGENCY,Watermead Ward (Bradgate Unit),HCL NURSING,HNSI0001069,5286.38
Department of Health,Leicestershire Partnership NHS Trust,01/07/22,NURSE - BAND 5 - AGENCY,Watermead Ward (Bradgate Unit),HCL NURSING,HNSI0001069,10615.07
Department of Health,Leicestershire Partnership NHS Trust,01/07/22,NURSE - BAND 2 - AGENCY,Welford Ward,HCL NURSING,HNSI0001069,1913.85
Department of Health,Leicestershire Partnership NHS Trust,01/07/22,NURSE - BAND 5 - AGENCY,Welford Ward,HCL NURSING,HNSI0001069,485.06
Department of Health,Leicestershire Partnership NHS Trust,01/07/22,Nurse - Band 6 -Agency,CAMHS HUB / CAP,HCL WORKFORCE SOLUTIONS,HWSI0001245,9065.06
Department of Health,Leicestershire Partnership NHS Trust,01/07/22,Nurse - Band 6 -Agency,CAMHS Waiting List Monies,HCL WORKFORCE SOLUTIONS,HWSI0001245,21959.08
Department of Health,Leicestershire Partnership NHS Trust,01/07/22,Nurse - Band 6 -Agency,Crisis Response and Home Treatment,HCL WORKFORCE SOLUTIONS,HWSI0001245,1934.86
Department of Health,Leicestershire Partnership NHS Trust,01/07/22,NURSE - BAND 2 - AGENCY,CAMHS Inpatient Service,HCL NURSING,HNSI0001071,3702.48
Department of Health,Leicestershire Partnership NHS Trust,01/07/22,NURSE - BAND 5 - AGENCY,CAMHS Inpatient Service,HCL NURSING,HNSI0001071,9057.34
Department of Health,Leicestershire Partnership NHS Trust,01/07/22,Nurse - Band 6 -Agency,CAMHS Waiting List Monies,HCL NURSING,HNSI0001071,3740.92
Department of Health,Leicestershire Partnership NHS Trust,01/07/22,NURSE - BAND 2 - AGENCY,Langley Ward ED Inpatient Service,HCL NURSING,HNSI0001071,8432.35
Department of Health,Leicestershire Partnership NHS Trust,01/07/22,NURSE - BAND 5 - AGENCY,Langley Ward ED Inpatient Service,HCL NURSING,HNSI0001071,3216.92
Department of Health,Leicestershire Partnership NHS Trust,01/07/22,Network Costs - WAN Maint,HIS Infrastructure,WIFI SPARK LTD,INV-019906,32130.00
Department of Health,Leicestershire Partnership NHS Trust,04/07/22,Payroll Deductions -Salary Sacrifice Cars Scheme,Balance Sheet Collection,TUSKER,61875,33156.87
Department of Health,Leicestershire Partnership NHS Trust,04/07/22,Unitary Payment,"The Agnes Unit (AKA Assessment and Treatment Centre) (P85, LPT)",ARDEN PARTNERSHIP (LEICESTER),SI0099,127037.34
Department of Health,Leicestershire Partnership NHS Trust,04/07/22,Crs_NHS_LT1y -Resus Inventory Supplied.,Balance Sheet Collection,SUPPLY CHAIN CO LTD,1123068531,26173.80
Department of Health,Leicestershire Partnership NHS Trust,04/07/22,NURSE - BAND 2 - AGENCY,Beechwood Ward,HCL NURSING,HNSI0001066,8800.47
Department of Health,Leicestershire Partnership NHS Trust,04/07/22,NURSE - BAND 5 - AGENCY,Beechwood Ward,HCL NURSING,HNSI0001066,10827.39
Department of Health,Leicestershire Partnership NHS Trust,04/07/22,NURSE - BAND 5 - AGENCY,City Planned Care - East,HCL NURSING,HNSI0001066,10601.19
Department of Health,Leicestershire Partnership NHS Trust,04/07/22,NURSE - BAND 5 - AGENCY,City Planned Care - West,HCL NURSING,HNSI0001066,9042.71
Department of Health,Leicestershire Partnership NHS Trust,04/07/22,NURSE - BAND 2 - AGENCY,Clarendon Ward,HCL NURSING,HNSI0001066,4971.98
Department of Health,Leicestershire Partnership NHS Trust,04/07/22,NURSE - BAND 5 - AGENCY,Clarendon Ward,HCL NURSING,HNSI0001066,2592.75
Department of Health,Leicestershire Partnership NHS Trust,04/07/22,NURSE - BAND 2 - AGENCY,Coalville Snibston Ward,HCL NURSING,HNSI0001066,6086.71
Department of Health,Leicestershire Partnership NHS Trust,04/07/22,NURSE - BAND 5 - AGENCY,Coalville Snibston Ward,HCL NURSING,HNSI0001066,2047.12
Department of Health,Leicestershire Partnership NHS Trust,04/07/22,NURSE - BAND 2 - AGENCY,Coalville Ward 2,HCL NURSING,HNSI0001066,519.03
Department of Health,Leicestershire Partnership NHS Trust,04/07/22,NURSE - BAND 5 - AGENCY,Coalville Ward 2,HCL NURSING,HNSI0001066,803.18
Department of Health,Leicestershire Partnership NHS Trust,04/07/22,NURSE - BAND 2 - AGENCY,Dalgliesh Ward,HCL NURSING,HNSI0001066,2878.49
Department of Health,Leicestershire Partnership NHS Trust,04/07/22,NURSE - BAND 5 - AGENCY,Dalgliesh Ward,HCL NURSING,HNSI0001066,3662.67
Department of Health,Leicestershire Partnership NHS Trust,04/07/22,NURSE - BAND 5 - AGENCY,"East Planned Care - Oadby,Wigston & Harborough",HCL NURSING,HNSI0001066,1277.36
Department of Health,Leicestershire Partnership NHS Trust,04/07/22,NURSE - BAND 2 - AGENCY,H&B Comm Hosp East Ward,HCL NURSING,HNSI0001066,4570.83
Department of Health,Leicestershire Partnership NHS Trust,04/07/22,NURSE - BAND 5 - AGENCY,H&B Comm Hosp East Ward,HCL NURSING,HNSI0001066,7006.31
Department of Health,Leicestershire Partnership NHS Trust,04/07/22,NURSE - BAND 2 - AGENCY,H&B Comm Hosp North Ward,HCL NURSING,HNSI0001066,3666.78
Department of Health,Leicestershire Partnership NHS Trust,04/07/22,NURSE - BAND 5 - AGENCY,H&B Comm Hosp North Ward,HCL NURSING,HNSI0001066,2935.28
Department of Health,Leicestershire Partnership NHS Trust,04/07/22,NURSE - BAND 2 - AGENCY,Lough Swithland Ward,HCL NURSING,HNSI0001066,714.47
Department of Health,Leicestershire Partnership NHS Trust,04/07/22,NURSE - BAND 5 - AGENCY,Lough Swithland Ward,HCL NURSING,HNSI0001066,6563.74
Department of Health,Leicestershire Partnership NHS Trust,04/07/22,NURSE - BAND 5 - AGENCY,Non Recurrent 2012/13,HCL NURSING,HNSI0001066,45.90
Department of Health,Leicestershire Partnership NHS Trust,04/07/22,NURSE - BAND 2 - AGENCY,Rutland Ward Nursing,HCL NURSING,HNSI0001066,4106.46
Department of Health,Leicestershire Partnership NHS Trust,04/07/22,NURSE - BAND 5 - AGENCY,Rutland Ward Nursing,HCL NURSING,HNSI0001066,1688.46
Department of Health,Leicestershire Partnership NHS Trust,04/07/22,NURSE - BAND 2 - AGENCY,St Lukes Stroke Ward,HCL NURSING,HNSI0001066,6364.86
Department of Health,Leicestershire Partnership NHS Trust,04/07/22,NURSE - BAND 5 - AGENCY,St Lukes Stroke Ward,HCL NURSING,HNSI0001066,1321.63
Department of Health,Leicestershire Partnership NHS Trust,04/07/22,NURSE - BAND 2 - AGENCY,St Lukes Ward 3,HCL NURSING,HNSI0001066,2723.60
Department of Health,Leicestershire Partnership NHS Trust,04/07/22,NURSE - BAND 5 - AGENCY,St Lukes Ward 3,HCL NURSING,HNSI0001066,2226.67
Department of Health,Leicestershire Partnership NHS Trust,04/07/22,NURSE - BAND 2 - AGENCY,Wakerley Ward,HCL NURSING,HNSI0001066,9098.90
Department of Health,Leicestershire Partnership NHS Trust,04/07/22,NURSE - BAND 5 - AGENCY,Wakerley Ward,HCL NURSING,HNSI0001066,4517.62
Department of Health,Leicestershire Partnership NHS Trust,04/07/22,Healthcare Services / Recharges from Non-NHS Bodies,Adult & LD Management,UNIVERSITY OF LEICESTER,2230120430,143716.35
Department of Health,Leicestershire Partnership NHS Trust,05/07/22,Rent,"St Peters Health Center (Part 1st and 2nd floors) (P66, LPT)",LEICESTER LIFT CO,LEP1-SI1018,30082.84
Department of Health,Leicestershire Partnership NHS Trust,05/07/22,Healthcare Services / Recharges from Non-NHS Bodies,Adult Eating Disorder Collaborative,PRIORY GROUP,301JUN22LECAED,52254.72
Department of Health,Leicestershire Partnership NHS Trust,05/07/22,External Data Processing / Storage,Records & information Governance,L&R STORAGE,4009809,34246.17
Department of Health,Leicestershire Partnership NHS Trust,05/07/22,NURSE - BAND 2 - AGENCY,Beechwood Ward,HCL NURSING,HNSI0001070,13143.76
Department of Health,Leicestershire Partnership NHS Trust,05/07/22,NURSE - BAND 5 - AGENCY,Beechwood Ward,HCL NURSING,HNSI0001070,5241.21
Department of Health,Leicestershire Partnership NHS Trust,05/07/22,NURSE - BAND 5 - AGENCY,City Planned Care - East,HCL NURSING,HNSI0001070,12140.41
Department of Health,Leicestershire Partnership NHS Trust,05/07/22,NURSE - BAND 5 - AGENCY,City Planned Care - West,HCL NURSING,HNSI0001070,4194.92
Department of Health,Leicestershire Partnership NHS Trust,05/07/22,NURSE - BAND 2 - AGENCY,Clarendon Ward,HCL NURSING,HNSI0001070,3877.83
Department of Health,Leicestershire Partnership NHS Trust,05/07/22,NURSE - BAND 5 - AGENCY,Clarendon Ward,HCL NURSING,HNSI0001070,2363.20
Department of Health,Leicestershire Partnership NHS Trust,05/07/22,NURSE - BAND 2 - AGENCY,Coalville Snibston Ward,HCL NURSING,HNSI0001070,8430.30
Department of Health,Leicestershire Partnership NHS Trust,05/07/22,NURSE - BAND 5 - AGENCY,Coalville Snibston Ward,HCL NURSING,HNSI0001070,3748.98
Department of Health,Leicestershire Partnership NHS Trust,05/07/22,NURSE - BAND 2 - AGENCY,Coalville Ward 2,HCL NURSING,HNSI0001070,709.42
Department of Health,Leicestershire Partnership NHS Trust,05/07/22,NURSE - BAND 5 - AGENCY,Coalville Ward 2,HCL NURSING,HNSI0001070,3090.11
Department of Health,Leicestershire Partnership NHS Trust,05/07/22,NURSE - BAND 2 - AGENCY,Dalgliesh Ward,HCL NURSING,HNSI0001070,3194.69
Department of Health,Leicestershire Partnership NHS Trust,05/07/22,NURSE - BAND 5 - AGENCY,Dalgliesh Ward,HCL NURSING,HNSI0001070,4327.61
Department of Health,Leicestershire Partnership NHS Trust,05/07/22,NURSE - BAND 5 - AGENCY,"East Planned Care - Oadby,Wigston & Harborough",HCL NURSING,HNSI0001070,1930.31
Department of Health,Leicestershire Partnership NHS Trust,05/07/22,NURSE - BAND 2 - AGENCY,H&B Comm Hosp East Ward,HCL NURSING,HNSI0001070,3885.85
Department of Health,Leicestershire Partnership NHS Trust,05/07/22,NURSE - BAND 5 - AGENCY,H&B Comm Hosp East Ward,HCL NURSING,HNSI0001070,7631.42
Department of Health,Leicestershire Partnership NHS Trust,05/07/22,NURSE - BAND 2 - AGENCY,H&B Comm Hosp North Ward,HCL NURSING,HNSI0001070,2956.32
Department of Health,Leicestershire Partnership NHS Trust,05/07/22,NURSE - BAND 5 - AGENCY,H&B Comm Hosp North Ward,HCL NURSING,HNSI0001070,2047.54
Department of Health,Leicestershire Partnership NHS Trust,05/07/22,NURSE - BAND 2 - AGENCY,Lough Swithland Ward,HCL NURSING,HNSI0001070,1217.70
Department of Health,Leicestershire Partnership NHS Trust,05/07/22,NURSE - BAND 5 - AGENCY,Lough Swithland Ward,HCL NURSING,HNSI0001070,3014.40
Department of Health,Leicestershire Partnership NHS Trust,05/07/22,NURSE - BAND 2 - AGENCY,Rutland Ward Nursing,HCL NURSING,HNSI0001070,4543.64
Department of Health,Leicestershire Partnership NHS Trust,05/07/22,NURSE - BAND 5 - AGENCY,Rutland Ward Nursing,HCL NURSING,HNSI0001070,3933.32
Department of Health,Leicestershire Partnership NHS Trust,05/07/22,NURSE - BAND 2 - AGENCY,St Lukes Stroke Ward,HCL NURSING,HNSI0001070,4763.46
Department of Health,Leicestershire Partnership NHS Trust,05/07/22,NURSE - BAND 5 - AGENCY,St Lukes Stroke Ward,HCL NURSING,HNSI0001070,760.20
Department of Health,Leicestershire Partnership NHS Trust,05/07/22,NURSE - BAND 2 - AGENCY,St Lukes Ward 3,HCL NURSING,HNSI0001070,1945.63
Department of Health,Leicestershire Partnership NHS Trust,05/07/22,NURSE - BAND 5 - AGENCY,St Lukes Ward 3,HCL NURSING,HNSI0001070,3855.11
Department of Health,Leicestershire Partnership NHS Trust,05/07/22,NURSE - BAND 2 - AGENCY,Wakerley Ward,HCL NURSING,HNSI0001070,2830.02
Department of Health,Leicestershire Partnership NHS Trust,05/07/22,NURSE - BAND 5 - AGENCY,Wakerley Ward,HCL NURSING,HNSI0001070,6221.28
Department of Health,Leicestershire Partnership NHS Trust,05/07/22,Rent,NSPCC Training Cente,NSPCC,119775,28752.40
Department of Health,Leicestershire Partnership NHS Trust,06/07/22,GP IT Expenditure,Area Team,XMA COMPUTER PRODUCTS,LC11187,25459.20
Department of Health,Leicestershire Partnership NHS Trust,06/07/22,Tax/SS Crs-LT1y-Deduction-Ers P11D,Balance Sheet Collection,CHAPS,267PK001110872213A,120584.70
Department of Health,Leicestershire Partnership NHS Trust,07/07/22,Payroll Deductions -Home Electronics 69 June 22,Balance Sheet Collection,SME HCI LTD,140098,24214.60
Department of Health,Leicestershire Partnership NHS Trust,07/07/22,Healthcare Services / Recharges from Non-NHS Bodies,Adult Eating Disorder Collaborative,NAVIGO H&SC CIC,SAL-INV-7247,30205.20
Department of Health,Leicestershire Partnership NHS Trust,08/07/22,Legal Fees,Chief Executives Office,WEIGHTMANS SOLICITORS LLP,062022,46156.04
Department of Health,Leicestershire Partnership NHS Trust,08/07/22,Gas,"Beaumont Leys Health Centre (P94, LPT)",TOTAL GAS & POWER LTD,270083258/22,1053.19
Department of Health,Leicestershire Partnership NHS Trust,08/07/22,Gas,"Bennion Centre (including Forest Grange Day Unit) (P8, LPT)",TOTAL GAS & POWER LTD,270083258/22,12737.18
Department of Health,Leicestershire Partnership NHS Trust,08/07/22,Gas,"Bradgate Unit (including Glenvale day Unit) (P7, LPT)",TOTAL GAS & POWER LTD,270083258/22,21082.02
Department of Health,Leicestershire Partnership NHS Trust,08/07/22,Gas,Bridge Park Plaza - First Floor (LPT),TOTAL GAS & POWER LTD,270083258/22,2279.11
Department of Health,Leicestershire Partnership NHS Trust,08/07/22,Gas,"Bridge Park Road - Units 2 and 3 (P148, LPT)",TOTAL GAS & POWER LTD,270083258/22,524.29
Department of Health,Leicestershire Partnership NHS Trust,08/07/22,Gas,"Coalville Community Hospital (P138, LPT)",TOTAL GAS & POWER LTD,270083258/22,14171.42
Department of Health,Leicestershire Partnership NHS Trust,08/07/22,Gas,"Coalville Health Centre (P121, LPT)",TOTAL GAS & POWER LTD,270083258/22,868.20
Department of Health,Leicestershire Partnership NHS Trust,08/07/22,Gas,"Evington Centre (P6, LPT)",TOTAL GAS & POWER LTD,270083258/22,1664.74
Department of Health,Leicestershire Partnership NHS Trust,08/07/22,Gas,"Farm Lodge (P34, LPT)",TOTAL GAS & POWER LTD,270083258/22,171.24
Department of Health,Leicestershire Partnership NHS Trust,08/07/22,Gas,"Feilding Palmer Hospital (Lutterworth) (P131, LPT)",TOTAL GAS & POWER LTD,270083258/22,2273.72
Department of Health,Leicestershire Partnership NHS Trust,08/07/22,Gas,"Frith Cottages 3 & 4 (P36, LPT)",TOTAL GAS & POWER LTD,270083258/22,174.54
Department of Health,Leicestershire Partnership NHS Trust,08/07/22,Gas,HIS,TOTAL GAS & POWER LTD,270083258/22,141.07
Department of Health,Leicestershire Partnership NHS Trust,08/07/22,Gas,"Hawthorne Centre - Coalville (P14, LPT)",TOTAL GAS & POWER LTD,270083258/22,620.60
Department of Health,Leicestershire Partnership NHS Trust,08/07/22,Gas,"Hinckley and Bosworth Community Hospital (Sunnyside) (P133, LPT)",TOTAL GAS & POWER LTD,270083258/22,9726.62
Department of Health,Leicestershire Partnership NHS Trust,08/07/22,Gas,"Hynca Lodge (P33, LPT)",TOTAL GAS & POWER LTD,270083258/22,1011.32
Department of Health,Leicestershire Partnership NHS Trust,08/07/22,Gas,"LGH - Gwendolen House (P4, LPT)",TOTAL GAS & POWER LTD,270083258/22,2648.36
Department of Health,Leicestershire Partnership NHS Trust,08/07/22,Gas,"Loughborough Hospital (P136, LPT)",TOTAL GAS & POWER LTD,270083258/22,21045.01
Department of Health,Leicestershire Partnership NHS Trust,08/07/22,Gas,Mawson House (LPT),TOTAL GAS & POWER LTD,270083258/22,692.38
Department of Health,Leicestershire Partnership NHS Trust,08/07/22,Gas,"Mett Centre (P49, LPT)",TOTAL GAS & POWER LTD,270083258/22,467.12
Department of Health,Leicestershire Partnership NHS Trust,08/07/22,Gas,"Narborough Health Centre (P117, LPT)",TOTAL GAS & POWER LTD,270083258/22,668.71
Department of Health,Leicestershire Partnership NHS Trust,08/07/22,Gas,"Neville Centre - LGH (was DSC) (P147, LPT)",TOTAL GAS & POWER LTD,270083258/22,1275.31
Department of Health,Leicestershire Partnership NHS Trust,08/07/22,Gas,"OSL House (P54, LPT)",TOTAL GAS & POWER LTD,270083258/22,812.86
Department of Health,Leicestershire Partnership NHS Trust,08/07/22,Gas,"Orchard Resource Centre (P15, LPT)",TOTAL GAS & POWER LTD,270083258/22,750.31
Department of Health,Leicestershire Partnership NHS Trust,08/07/22,Gas,"Rutland Memorial Hospital (P134, LPT)",TOTAL GAS & POWER LTD,270083258/22,4816.58
Department of Health,Leicestershire Partnership NHS Trust,08/07/22,Gas,"Shepshed Health Centre (P123, LPT)",TOTAL GAS & POWER LTD,270083258/22,830.66
Department of Health,Leicestershire Partnership NHS Trust,08/07/22,Gas,"Springfield Road Health Centre (P92, LPT)",TOTAL GAS & POWER LTD,270083258/22,787.14
Department of Health,Leicestershire Partnership NHS Trust,08/07/22,Gas,"Stewart House (P61, LPT)",TOTAL GAS & POWER LTD,270083258/22,5199.37
Department of Health,Leicestershire Partnership NHS Trust,08/07/22,Gas,"Swithland House - London Road 352 (P44, LPT)",TOTAL GAS & POWER LTD,270083258/22,1260.73
Department of Health,Leicestershire Partnership NHS Trust,08/07/22,Gas,"The Agnes Unit (AKA Assessment and Treatment Centre) (P85, LPT)",TOTAL GAS & POWER LTD,270083258/22,5003.30
Department of Health,Leicestershire Partnership NHS Trust,08/07/22,Gas,The Beacon,TOTAL GAS & POWER LTD,270083258/22,2639.54
Department of Health,Leicestershire Partnership NHS Trust,08/07/22,Gas,"The Cedars (P19, LPT)",TOTAL GAS & POWER LTD,270083258/22,279.53
Department of Health,Leicestershire Partnership NHS Trust,08/07/22,Gas,"The Grange 1 (P4, LPT)",TOTAL GAS & POWER LTD,270083258/22,320.22
Department of Health,Leicestershire Partnership NHS Trust,08/07/22,Gas,"The Grange 2 (P41, LPT)",TOTAL GAS & POWER LTD,270083258/22,184.22
Department of Health,Leicestershire Partnership NHS Trust,08/07/22,Gas,"The Willows - Cordelia Close (P22, LPT)",TOTAL GAS & POWER LTD,270083258/22,5124.94
Department of Health,Leicestershire Partnership NHS Trust,08/07/22,Gas,"Valentine Centre (P3, LPT)",TOTAL GAS & POWER LTD,270083258/22,2410.60
Department of Health,Leicestershire Partnership NHS Trust,08/07/22,Gas,"Westcotes Group -Westcotes House (P78, LPT)",TOTAL GAS & POWER LTD,270083258/22,1555.98
Department of Health,Leicestershire Partnership NHS Trust,08/07/22,Gas,"Winstanley Drive Health Centre (P8, LPT)",TOTAL GAS & POWER LTD,270083258/22,663.65
Department of Health,Leicestershire Partnership NHS Trust,08/07/22,NURSE - BAND 2 - AGENCY,Beechwood Ward,HCL NURSING,HNSI0001081,9116.39
Department of Health,Leicestershire Partnership NHS Trust,08/07/22,NURSE - BAND 5 - AGENCY,Beechwood Ward,HCL NURSING,HNSI0001081,4469.74
Department of Health,Leicestershire Partnership NHS Trust,08/07/22,NURSE - BAND 5 - AGENCY,City Planned Care - East,HCL NURSING,HNSI0001081,12181.78
Department of Health,Leicestershire Partnership NHS Trust,08/07/22,NURSE - BAND 5 - AGENCY,City Planned Care - West,HCL NURSING,HNSI0001081,17448.04
Department of Health,Leicestershire Partnership NHS Trust,08/07/22,NURSE - BAND 2 - AGENCY,Clarendon Ward,HCL NURSING,HNSI0001081,5052.68
Department of Health,Leicestershire Partnership NHS Trust,08/07/22,NURSE - BAND 5 - AGENCY,Clarendon Ward,HCL NURSING,HNSI0001081,4381.62
Department of Health,Leicestershire Partnership NHS Trust,08/07/22,NURSE - BAND 2 - AGENCY,Coalville Snibston Ward,HCL NURSING,HNSI0001081,4788.57
Department of Health,Leicestershire Partnership NHS Trust,08/07/22,NURSE - BAND 5 - AGENCY,Coalville Snibston Ward,HCL NURSING,HNSI0001081,1487.32
Department of Health,Leicestershire Partnership NHS Trust,08/07/22,NURSE - BAND 2 - AGENCY,Coalville Ward 2,HCL NURSING,HNSI0001081,748.70
Department of Health,Leicestershire Partnership NHS Trust,08/07/22,NURSE - BAND 5 - AGENCY,Coalville Ward 2,HCL NURSING,HNSI0001081,1560.13
Department of Health,Leicestershire Partnership NHS Trust,08/07/22,NURSE - BAND 2 - AGENCY,Dalgliesh Ward,HCL NURSING,HNSI0001081,3578.20
Department of Health,Leicestershire Partnership NHS Trust,08/07/22,NURSE - BAND 5 - AGENCY,Dalgliesh Ward,HCL NURSING,HNSI0001081,3047.44
Department of Health,Leicestershire Partnership NHS Trust,08/07/22,NURSE - BAND 5 - AGENCY,"East Planned Care - Oadby,Wigston & Harborough",HCL NURSING,HNSI0001081,2084.41
Department of Health,Leicestershire Partnership NHS Trust,08/07/22,NURSE - BAND 2 - AGENCY,H&B Comm Hosp East Ward,HCL NURSING,HNSI0001081,4603.74
Department of Health,Leicestershire Partnership NHS Trust,08/07/22,NURSE - BAND 5 - AGENCY,H&B Comm Hosp East Ward,HCL NURSING,HNSI0001081,5807.61
Department of Health,Leicestershire Partnership NHS Trust,08/07/22,NURSE - BAND 2 - AGENCY,H&B Comm Hosp North Ward,HCL NURSING,HNSI0001081,1619.95
Department of Health,Leicestershire Partnership NHS Trust,08/07/22,NURSE - BAND 5 - AGENCY,H&B Comm Hosp North Ward,HCL NURSING,HNSI0001081,2527.15
Department of Health,Leicestershire Partnership NHS Trust,08/07/22,NURSE - BAND 2 - AGENCY,Lough Swithland Ward,HCL NURSING,HNSI0001081,395.92
Department of Health,Leicestershire Partnership NHS Trust,08/07/22,NURSE - BAND 5 - AGENCY,Lough Swithland Ward,HCL NURSING,HNSI0001081,6165.67
Department of Health,Leicestershire Partnership NHS Trust,08/07/22,NURSE - BAND 2 - AGENCY,Rutland Ward Nursing,HCL NURSING,HNSI0001081,6062.03
Department of Health,Leicestershire Partnership NHS Trust,08/07/22,NURSE - BAND 5 - AGENCY,Rutland Ward Nursing,HCL NURSING,HNSI0001081,1783.90
Department of Health,Leicestershire Partnership NHS Trust,08/07/22,NURSE - BAND 2 - AGENCY,St Lukes Stroke Ward,HCL NURSING,HNSI0001081,3193.19
Department of Health,Leicestershire Partnership NHS Trust,08/07/22,NURSE - BAND 5 - AGENCY,St Lukes Stroke Ward,HCL NURSING,HNSI0001081,1086.74
Department of Health,Leicestershire Partnership NHS Trust,08/07/22,NURSE - BAND 2 - AGENCY,St Lukes Ward 3,HCL NURSING,HNSI0001081,1821.82
Department of Health,Leicestershire Partnership NHS Trust,08/07/22,NURSE - BAND 5 - AGENCY,St Lukes Ward 3,HCL NURSING,HNSI0001081,4236.77
Department of Health,Leicestershire Partnership NHS Trust,08/07/22,NURSE - BAND 2 - AGENCY,Wakerley Ward,HCL NURSING,HNSI0001081,4246.02
Department of Health,Leicestershire Partnership NHS Trust,08/07/22,NURSE - BAND 5 - AGENCY,Wakerley Ward,HCL NURSING,HNSI0001081,2986.28
Department of Health,Leicestershire Partnership NHS Trust,11/07/22,HR / Payroll Services,HR Employment Services,LINCOLNSHIRE PART NHSFT(RP7),L0000375,29360.83
Department of Health,Leicestershire Partnership NHS Trust,11/07/22,WIP Project Not in BS - Buildings excl Dwellings,Work in Progress,TILBURY DOUGLAS CONSTRUCTION LTD,22070037,25439.22
Department of Health,Leicestershire Partnership NHS Trust,11/07/22,WIP Project Not in BS - Buildings excl Dwellings,Work in Progress,TILBURY DOUGLAS CONSTRUCTION LTD,22070031,60470.64
Department of Health,Leicestershire Partnership NHS Trust,11/07/22,WIP Project Not in BS - Buildings excl Dwellings,Work in Progress,TILBURY DOUGLAS CONSTRUCTION LTD,22070034,54398.70
Department of Health,Leicestershire Partnership NHS Trust,11/07/22,WIP Project Not in BS - Buildings excl Dwellings,Work in Progress,TILBURY DOUGLAS CONSTRUCTION LTD,22070035,29093.93
Department of Health,Leicestershire Partnership NHS Trust,11/07/22,GP IT Expenditure,Area Team,XMA COMPUTER PRODUCTS,LC15118,25459.20
Department of Health,Leicestershire Partnership NHS Trust,13/07/22,Insurance Costs,Chief Executives Office,NHS LITIGATION AUTHORITY,SICX409333,192613.10
Department of Health,Leicestershire Partnership NHS Trust,13/07/22,Network Costs - WAN Maint,HIS Infrastructure,IVANTI UK LIMITED,90089512,76858.92
Department of Health,Leicestershire Partnership NHS Trust,14/07/22,Water & Sewerage Charges,"Beaumont Leys Health Centre (P94, LPT)",WATER PLUS,0865005329/INV06491261,254.32
Department of Health,Leicestershire Partnership NHS Trust,14/07/22,Water & Sewerage Charges,Bridge Park Road (Unit C18) (LPT),WATER PLUS,0865005329/INV06491261,55.73
Department of Health,Leicestershire Partnership NHS Trust,14/07/22,Water & Sewerage Charges,"Bridge Park Road - Units 2 and 3 (P148, LPT)",WATER PLUS,0865005329/INV06491261,1237.16
Department of Health,Leicestershire Partnership NHS Trust,14/07/22,Water & Sewerage Charges,"Coalville Community Hospital (P138, LPT)",WATER PLUS,0865005329/INV06491261,3000.49
Department of Health,Leicestershire Partnership NHS Trust,14/07/22,Water & Sewerage Charges,"Coalville Health Centre (P121, LPT)",WATER PLUS,0865005329/INV06491261,987.50
Department of Health,Leicestershire Partnership NHS Trust,14/07/22,Water & Sewerage Charges,"Evington Centre (P6, LPT)",WATER PLUS,0865005329/INV06491261,3377.13
Department of Health,Leicestershire Partnership NHS Trust,14/07/22,Water & Sewerage Charges,"Feilding Palmer Hospital (Lutterworth) (P131, LPT)",WATER PLUS,0865005329/INV06491261,44.56
Department of Health,Leicestershire Partnership NHS Trust,14/07/22,Water & Sewerage Charges,HIS,WATER PLUS,0865005329/INV06491261,452.14
Department of Health,Leicestershire Partnership NHS Trust,14/07/22,Water & Sewerage Charges,Hinckley & District Hospital (PROPCO),WATER PLUS,0865005329/INV06491261,175.75
Department of Health,Leicestershire Partnership NHS Trust,14/07/22,Water & Sewerage Charges,"Hinckley and Bosworth Community Hospital (Sunnyside) (P133, LPT)",WATER PLUS,0865005329/INV06491261,3219.28
Department of Health,Leicestershire Partnership NHS Trust,14/07/22,Water & Sewerage Charges,"Hynca Lodge (P33, LPT)",WATER PLUS,0865005329/INV06491261,460.21
Department of Health,Leicestershire Partnership NHS Trust,14/07/22,Water & Sewerage Charges,Linnaeus Nursery - Cordelia Close,WATER PLUS,0865005329/INV06491261,117.07
Department of Health,Leicestershire Partnership NHS Trust,14/07/22,Water & Sewerage Charges,"Loughborough Hospital (P136, LPT)",WATER PLUS,0865005329/INV06491261,5701.06
Department of Health,Leicestershire Partnership NHS Trust,14/07/22,Water & Sewerage Charges,"Narborough Health Centre (P117, LPT)",WATER PLUS,0865005329/INV06491261,1302.18
Department of Health,Leicestershire Partnership NHS Trust,14/07/22,Water & Sewerage Charges,"OSL House (P54, LPT)",WATER PLUS,0865005329/INV06491261,798.03
Department of Health,Leicestershire Partnership NHS Trust,14/07/22,Water & Sewerage Charges,"Orchard Resource Centre (P15, LPT)",WATER PLUS,0865005329/INV06491261,760.78
Department of Health,Leicestershire Partnership NHS Trust,14/07/22,Water & Sewerage Charges,"Prince Philip House (P96, LPT)",WATER PLUS,0865005329/INV06491261,423.34
Department of Health,Leicestershire Partnership NHS Trust,14/07/22,Water & Sewerage Charges,Rothesay -  London Road 352A (LPT),WATER PLUS,0865005329/INV06491261,585.48
Department of Health,Leicestershire Partnership NHS Trust,14/07/22,Water & Sewerage Charges,"Rubicon Close 3 (P56, LPT)",WATER PLUS,0865005329/INV06491261,37.33
Department of Health,Leicestershire Partnership NHS Trust,14/07/22,Water & Sewerage Charges,"Rutland Memorial Hospital (P134, LPT)",WATER PLUS,0865005329/INV06491261,307.52
Department of Health,Leicestershire Partnership NHS Trust,14/07/22,Water & Sewerage Charges,"Shepshed Health Centre (P123, LPT)",WATER PLUS,0865005329/INV06491261,607.36
Department of Health,Leicestershire Partnership NHS Trust,14/07/22,Water & Sewerage Charges,"Springfield Road Health Centre (P92, LPT)",WATER PLUS,0865005329/INV06491261,619.82
Department of Health,Leicestershire Partnership NHS Trust,14/07/22,Water & Sewerage Charges,"Stewart House (P61, LPT)",WATER PLUS,0865005329/INV06491261,3769.31
Department of Health,Leicestershire Partnership NHS Trust,14/07/22,Water & Sewerage Charges,"Swithland House - London Road 352 (P44, LPT)",WATER PLUS,0865005329/INV06491261,193.27
Department of Health,Leicestershire Partnership NHS Trust,14/07/22,Water & Sewerage Charges,"The Agnes Unit (AKA Assessment and Treatment Centre) (P85, LPT)",WATER PLUS,0865005329/INV06491261,1531.52
Department of Health,Leicestershire Partnership NHS Trust,14/07/22,Water & Sewerage Charges,"The Cedars (P19, LPT)",WATER PLUS,0865005329/INV06491261,160.69
Department of Health,Leicestershire Partnership NHS Trust,14/07/22,Water & Sewerage Charges,"The Grange 1 (P4, LPT)",WATER PLUS,0865005329/INV06491261,370.93
Department of Health,Leicestershire Partnership NHS Trust,14/07/22,Water & Sewerage Charges,"The Grange 2 (P41, LPT)",WATER PLUS,0865005329/INV06491261,192.49
Department of Health,Leicestershire Partnership NHS Trust,14/07/22,Water & Sewerage Charges,"The Willows - Cordelia Close (P22, LPT)",WATER PLUS,0865005329/INV06491261,2756.79
Department of Health,Leicestershire Partnership NHS Trust,14/07/22,Water & Sewerage Charges,"Westcotes Group - Tanglewood Resource Centre (P77, LPT)",WATER PLUS,0865005329/INV06491261,359.64
Department of Health,Leicestershire Partnership NHS Trust,14/07/22,Water & Sewerage Charges,"Westcotes Group -Westcotes House (P78, LPT)",WATER PLUS,0865005329/INV06491261,163.21
Department of Health,Leicestershire Partnership NHS Trust,14/07/22,Network Costs - WAN Maint,HIS Infrastructure,VIRGIN MEDIA BUSINESS,262421-196,35934.66
Department of Health,Leicestershire Partnership NHS Trust,18/07/22,Crs_NHS_LT1y -Resus Inventory Supplied.,Balance Sheet Collection,SUPPLY CHAIN CO LTD,1123071926,26097.70
Department of Health,Leicestershire Partnership NHS Trust,18/07/22,Crs_NHS_LT1y -Resus Inventory Supplied.,Balance Sheet Collection,SUPPLY CHAIN CO LTD,1123077940,37954.51
Department of Health,Leicestershire Partnership NHS Trust,18/07/22,Course / Training Expenses,Work Force Transformation,STORM SKILLS TRAINING CIC,190261,36072.00
Department of Health,Leicestershire Partnership NHS Trust,18/07/22,Landline Telephone Rental / Calls,"Beaumont Leys Health Centre (P94, LPT)",VIRGIN MEDIA BUSINESS,853083001/004/0722,341.30
Department of Health,Leicestershire Partnership NHS Trust,18/07/22,Landline Telephone Rental / Calls,"Bennion Centre (including Forest Grange Day Unit) (P8, LPT)",VIRGIN MEDIA BUSINESS,853083001/004/0722,7.74
Department of Health,Leicestershire Partnership NHS Trust,18/07/22,Landline Telephone Rental / Calls,"Bradgate Unit (including Glenvale day Unit) (P7, LPT)",VIRGIN MEDIA BUSINESS,853083001/004/0722,8245.55
Department of Health,Leicestershire Partnership NHS Trust,18/07/22,Landline Telephone Rental / Calls,Braunstone Health and Social Care Centre (Part) (PROPCO),VIRGIN MEDIA BUSINESS,853083001/004/0722,1078.08
Department of Health,Leicestershire Partnership NHS Trust,18/07/22,Landline Telephone Rental / Calls,Bridge Park Plaza - First Floor (LPT),VIRGIN MEDIA BUSINESS,853083001/004/0722,3764.50
Department of Health,Leicestershire Partnership NHS Trust,18/07/22,Landline Telephone Rental / Calls,"Coalville Community Hospital (P138, LPT)",VIRGIN MEDIA BUSINESS,853083001/004/0722,1334.00
Department of Health,Leicestershire Partnership NHS Trust,18/07/22,Landline Telephone Rental / Calls,"Coalville Health Centre (P121, LPT)",VIRGIN MEDIA BUSINESS,853083001/004/0722,150.88
Department of Health,Leicestershire Partnership NHS Trust,18/07/22,Landline Telephone Rental / Calls,County Hall,VIRGIN MEDIA BUSINESS,853083001/004/0722,1491.50
Department of Health,Leicestershire Partnership NHS Trust,18/07/22,Landline Telephone Rental / Calls,Estates & Facilities Central,VIRGIN MEDIA BUSINESS,853083001/004/0722,7.57
Department of Health,Leicestershire Partnership NHS Trust,18/07/22,Landline Telephone Rental / Calls,"Evington Centre (P6, LPT)",VIRGIN MEDIA BUSINESS,853083001/004/0722,1652.56
Department of Health,Leicestershire Partnership NHS Trust,18/07/22,Landline Telephone Rental / Calls,HIS,VIRGIN MEDIA BUSINESS,853083001/004/0722,2989.63
Department of Health,Leicestershire Partnership NHS Trust,18/07/22,Landline Telephone Rental / Calls,"Hawthorne Centre - Coalville (P14, LPT)",VIRGIN MEDIA BUSINESS,853083001/004/0722,484.01
Department of Health,Leicestershire Partnership NHS Trust,18/07/22,Landline Telephone Rental / Calls,"Hinckley and Bosworth Community Hospital (Sunnyside) (P133, LPT)",VIRGIN MEDIA BUSINESS,853083001/004/0722,996.40
Department of Health,Leicestershire Partnership NHS Trust,18/07/22,Landline Telephone Rental / Calls,Hood Park Leisure Centre Clinic,VIRGIN MEDIA BUSINESS,853083001/004/0722,23.22
Department of Health,Leicestershire Partnership NHS Trust,18/07/22,Landline Telephone Rental / Calls,"Hynca Lodge (P33, LPT)",VIRGIN MEDIA BUSINESS,853083001/004/0722,367.10
Department of Health,Leicestershire Partnership NHS Trust,18/07/22,Landline Telephone Rental / Calls,"Legion House, Ashby",VIRGIN MEDIA BUSINESS,853083001/004/0722,45.46
Department of Health,Leicestershire Partnership NHS Trust,18/07/22,Landline Telephone Rental / Calls,"Loughborough Hospital (P136, LPT)",VIRGIN MEDIA BUSINESS,853083001/004/0722,4346.56
Department of Health,Leicestershire Partnership NHS Trust,18/07/22,Landline Telephone Rental / Calls,Mawson House (LPT),VIRGIN MEDIA BUSINESS,853083001/004/0722,454.79
Department of Health,Leicestershire Partnership NHS Trust,18/07/22,Landline Telephone Rental / Calls,Merlyn Vaz Centre (CHP),VIRGIN MEDIA BUSINESS,853083001/004/0722,1435.86
Department of Health,Leicestershire Partnership NHS Trust,18/07/22,Landline Telephone Rental / Calls,"Mett Centre (P49, LPT)",VIRGIN MEDIA BUSINESS,853083001/004/0722,91.83
Department of Health,Leicestershire Partnership NHS Trust,18/07/22,Landline Telephone Rental / Calls,NSPCC Training Cente,VIRGIN MEDIA BUSINESS,853083001/004/0722,159.96
Department of Health,Leicestershire Partnership NHS Trust,18/07/22,Landline Telephone Rental / Calls,New Parks Health Centre (PROPCO),VIRGIN MEDIA BUSINESS,853083001/004/0722,1500.42
Department of Health,Leicestershire Partnership NHS Trust,18/07/22,Landline Telephone Rental / Calls,"OSL House (P54, LPT)",VIRGIN MEDIA BUSINESS,853083001/004/0722,981.88
Department of Health,Leicestershire Partnership NHS Trust,18/07/22,Landline Telephone Rental / Calls,"Orchard Resource Centre (P15, LPT)",VIRGIN MEDIA BUSINESS,853083001/004/0722,600.20
Department of Health,Leicestershire Partnership NHS Trust,18/07/22,Landline Telephone Rental / Calls,Pasley Road Health Centre (PROPCO),VIRGIN MEDIA BUSINESS,853083001/004/0722,124.33
Department of Health,Leicestershire Partnership NHS Trust,18/07/22,Landline Telephone Rental / Calls,"Prince Philip House (P96, LPT)",VIRGIN MEDIA BUSINESS,853083001/004/0722,1556.17
Department of Health,Leicestershire Partnership NHS Trust,18/07/22,Landline Telephone Rental / Calls,Rushey Mead Health Centre (PROPCO),VIRGIN MEDIA BUSINESS,853083001/004/0722,68.90
Department of Health,Leicestershire Partnership NHS Trust,18/07/22,Landline Telephone Rental / Calls,"Shepshed Health Centre (P123, LPT)",VIRGIN MEDIA BUSINESS,853083001/004/0722,9.29
Department of Health,Leicestershire Partnership NHS Trust,18/07/22,Landline Telephone Rental / Calls,"Springfield Road Health Centre (P92, LPT)",VIRGIN MEDIA BUSINESS,853083001/004/0722,312.31
Department of Health,Leicestershire Partnership NHS Trust,18/07/22,Landline Telephone Rental / Calls,"St Peters Health Center (Part 1st and 2nd floors) (P66, LPT)",VIRGIN MEDIA BUSINESS,853083001/004/0722,1748.29
Department of Health,Leicestershire Partnership NHS Trust,18/07/22,Landline Telephone Rental / Calls,"Swithland House - London Road 352 (P44, LPT)",VIRGIN MEDIA BUSINESS,853083001/004/0722,247.40
Department of Health,Leicestershire Partnership NHS Trust,18/07/22,Landline Telephone Rental / Calls,"The Cedars (P19, LPT)",VIRGIN MEDIA BUSINESS,853083001/004/0722,801.01
Department of Health,Leicestershire Partnership NHS Trust,18/07/22,Landline Telephone Rental / Calls,"The Willows - Cordelia Close (P22, LPT)",VIRGIN MEDIA BUSINESS,853083001/004/0722,599.45
Department of Health,Leicestershire Partnership NHS Trust,18/07/22,Landline Telephone Rental / Calls,"Valentine Centre (P3, LPT)",VIRGIN MEDIA BUSINESS,853083001/004/0722,1722.00
Department of Health,Leicestershire Partnership NHS Trust,18/07/22,Landline Telephone Rental / Calls,Warren Park Way 25 (PROPCO),VIRGIN MEDIA BUSINESS,853083001/004/0722,705.62
Department of Health,Leicestershire Partnership NHS Trust,18/07/22,Landline Telephone Rental / Calls,"Westcotes Group -Westcotes House (P78, LPT)",VIRGIN MEDIA BUSINESS,853083001/004/0722,1445.23
Department of Health,Leicestershire Partnership NHS Trust,18/07/22,Landline Telephone Rental / Calls,"Winstanley Drive Health Centre (P8, LPT)",VIRGIN MEDIA BUSINESS,853083001/004/0722,435.22
Department of Health,Leicestershire Partnership NHS Trust,19/07/22,Nurse - Band 6 -Agency,AMH - Central Access Point,HCL NURSING,HNSI0001080,2362.45
Department of Health,Leicestershire Partnership NHS Trust,19/07/22,Nurse - Band 6 -Agency,Adult County West Leicestershire CMHT,HCL NURSING,HNSI0001080,1079.94
Department of Health,Leicestershire Partnership NHS Trust,19/07/22,Nurse - Band 6 -Agency,Adult County- East Leicester CMHT,HCL NURSING,HNSI0001080,1420.27
Department of Health,Leicestershire Partnership NHS Trust,19/07/22,NURSE - BAND 2 - AGENCY,Agnes Unit,HCL NURSING,HNSI0001080,17437.00
Department of Health,Leicestershire Partnership NHS Trust,19/07/22,NURSE - BAND 5 - AGENCY,Agnes Unit,HCL NURSING,HNSI0001080,19215.57
Department of Health,Leicestershire Partnership NHS Trust,19/07/22,NURSE - BAND 2 - AGENCY,Ashby Ward (Bradgate Unit),HCL NURSING,HNSI0001080,5022.53
Department of Health,Leicestershire Partnership NHS Trust,19/07/22,NURSE - BAND 5 - AGENCY,Ashby Ward (Bradgate Unit),HCL NURSING,HNSI0001080,12972.24
Department of Health,Leicestershire Partnership NHS Trust,19/07/22,NURSE - BAND 5 - AGENCY,Aston Ward (Bradgate Unit),HCL NURSING,HNSI0001080,1040.08
Department of Health,Leicestershire Partnership NHS Trust,19/07/22,NURSE - BAND 2 - AGENCY,Beaumont Ward - Bradgate Unit,HCL NURSING,HNSI0001080,9703.00
Department of Health,Leicestershire Partnership NHS Trust,19/07/22,NURSE - BAND 5 - AGENCY,Beaumont Ward - Bradgate Unit,HCL NURSING,HNSI0001080,10759.08
Department of Health,Leicestershire Partnership NHS Trust,19/07/22,NURSE - BAND 2 - AGENCY,Belvoir Psychiatric Intensive Care Unit,HCL NURSING,HNSI0001080,4104.16
Department of Health,Leicestershire Partnership NHS Trust,19/07/22,NURSE - BAND 5 - AGENCY,Belvoir Psychiatric Intensive Care Unit,HCL NURSING,HNSI0001080,4187.69
Department of Health,Leicestershire Partnership NHS Trust,19/07/22,NURSE - BAND 2 - AGENCY,Bosworth Ward - Bradgate Unit,HCL NURSING,HNSI0001080,1422.56
Department of Health,Leicestershire Partnership NHS Trust,19/07/22,NURSE - BAND 5 - AGENCY,Bosworth Ward - Bradgate Unit,HCL NURSING,HNSI0001080,4694.06
Department of Health,Leicestershire Partnership NHS Trust,19/07/22,NURSE - BAND 2 - AGENCY,Cedar (Willows),HCL NURSING,HNSI0001080,4115.93
Department of Health,Leicestershire Partnership NHS Trust,19/07/22,NURSE - BAND 5 - AGENCY,Cedar (Willows),HCL NURSING,HNSI0001080,3622.71
Department of Health,Leicestershire Partnership NHS Trust,19/07/22,Nurse - Band 6 -Agency,City West CMHT MHSOP,HCL NURSING,HNSI0001080,1056.00
Department of Health,Leicestershire Partnership NHS Trust,19/07/22,NURSE - BAND 2 - AGENCY,Coleman Ward,HCL NURSING,HNSI0001080,10302.71
Department of Health,Leicestershire Partnership NHS Trust,19/07/22,NURSE - BAND 5 - AGENCY,Coleman Ward,HCL NURSING,HNSI0001080,5715.15
Department of Health,Leicestershire Partnership NHS Trust,19/07/22,NURSE - BAND 5 - AGENCY,Crisis Resolution,HCL NURSING,HNSI0001080,2703.56
Department of Health,Leicestershire Partnership NHS Trust,19/07/22,Nurse - Band 6 -Agency,Crisis Resolution,HCL NURSING,HNSI0001080,757.03
Department of Health,Leicestershire Partnership NHS Trust,19/07/22,NURSE - BAND 2 - AGENCY,Griffin Ward (HPC),HCL NURSING,HNSI0001080,5190.67
Department of Health,Leicestershire Partnership NHS Trust,19/07/22,NURSE - BAND 5 - AGENCY,Griffin Ward (HPC),HCL NURSING,HNSI0001080,973.84
Department of Health,Leicestershire Partnership NHS Trust,19/07/22,NURSE - BAND 2 - AGENCY,Heather Ward,HCL NURSING,HNSI0001080,1858.67
Department of Health,Leicestershire Partnership NHS Trust,19/07/22,NURSE - BAND 5 - AGENCY,Heather Ward,HCL NURSING,HNSI0001080,5274.51
Department of Health,Leicestershire Partnership NHS Trust,19/07/22,NURSE - BAND 2 - AGENCY,Kirby Ward,HCL NURSING,HNSI0001080,7247.92
Department of Health,Leicestershire Partnership NHS Trust,19/07/22,NURSE - BAND 5 - AGENCY,Kirby Ward,HCL NURSING,HNSI0001080,1620.25
Department of Health,Leicestershire Partnership NHS Trust,19/07/22,NURSE - BAND 2 - AGENCY,Maple Ward,HCL NURSING,HNSI0001080,3776.60
Department of Health,Leicestershire Partnership NHS Trust,19/07/22,NURSE - BAND 5 - AGENCY,Maple Ward,HCL NURSING,HNSI0001080,1194.95
Department of Health,Leicestershire Partnership NHS Trust,19/07/22,NURSE - BAND 5 - AGENCY,Mental Health Liaison Team,HCL NURSING,HNSI0001080,537.79
Department of Health,Leicestershire Partnership NHS Trust,19/07/22,Nurse - Band 6 -Agency,Mental Health Liaison Team,HCL NURSING,HNSI0001080,1257.04
Department of Health,Leicestershire Partnership NHS Trust,19/07/22,NURSE - BAND 2 - AGENCY,Mill Lodge,HCL NURSING,HNSI0001080,5678.82
Department of Health,Leicestershire Partnership NHS Trust,19/07/22,NURSE - BAND 5 - AGENCY,Mill Lodge,HCL NURSING,HNSI0001080,6771.71
Department of Health,Leicestershire Partnership NHS Trust,19/07/22,NURSE - BAND 2 - AGENCY,Phoenix Ward (HPC),HCL NURSING,HNSI0001080,7835.20
Department of Health,Leicestershire Partnership NHS Trust,19/07/22,NURSE - BAND 5 - AGENCY,Phoenix Ward (HPC),HCL NURSING,HNSI0001080,2384.19
Department of Health,Leicestershire Partnership NHS Trust,19/07/22,NURSE - BAND 2 - AGENCY,Place Of Safety Assessment Unit,HCL NURSING,HNSI0001080,452.50
Department of Health,Leicestershire Partnership NHS Trust,19/07/22,NURSE - BAND 5 - AGENCY,Place Of Safety Assessment Unit,HCL NURSING,HNSI0001080,3229.58
Department of Health,Leicestershire Partnership NHS Trust,19/07/22,NURSE - BAND 2 - AGENCY,Stewart House,HCL NURSING,HNSI0001080,2951.25
Department of Health,Leicestershire Partnership NHS Trust,19/07/22,NURSE - BAND 5 - AGENCY,Stewart House,HCL NURSING,HNSI0001080,5948.29
Department of Health,Leicestershire Partnership NHS Trust,19/07/22,NURSE - BAND 2 - AGENCY,Sycamore (Willows),HCL NURSING,HNSI0001080,4938.44
Department of Health,Leicestershire Partnership NHS Trust,19/07/22,NURSE - BAND 5 - AGENCY,Sycamore (Willows),HCL NURSING,HNSI0001080,4182.71
Department of Health,Leicestershire Partnership NHS Trust,19/07/22,NURSE - BAND 2 - AGENCY,Thornton Ward - Bradgate Unit,HCL NURSING,HNSI0001080,2994.61
Department of Health,Leicestershire Partnership NHS Trust,19/07/22,NURSE - BAND 5 - AGENCY,Thornton Ward - Bradgate Unit,HCL NURSING,HNSI0001080,2573.02
Department of Health,Leicestershire Partnership NHS Trust,19/07/22,NURSE - BAND 2 - AGENCY,Watermead Ward (Bradgate Unit),HCL NURSING,HNSI0001080,933.24
Department of Health,Leicestershire Partnership NHS Trust,19/07/22,NURSE - BAND 5 - AGENCY,Watermead Ward (Bradgate Unit),HCL NURSING,HNSI0001080,8822.52
Department of Health,Leicestershire Partnership NHS Trust,19/07/22,NURSE - BAND 2 - AGENCY,Welford Ward,HCL NURSING,HNSI0001080,987.18
Department of Health,Leicestershire Partnership NHS Trust,19/07/22,NURSE - BAND 5 - AGENCY,Welford Ward,HCL NURSING,HNSI0001080,2005.72
Department of Health,Leicestershire Partnership NHS Trust,19/07/22,Nurse - Band 6 -Agency,AMH - Central Access Point,HCL NURSING,HNSI0001090,1408.59
Department of Health,Leicestershire Partnership NHS Trust,19/07/22,Nurse - Band 6 -Agency,Adult County- East Leicester CMHT,HCL NURSING,HNSI0001090,1383.38
Department of Health,Leicestershire Partnership NHS Trust,19/07/22,NURSE - BAND 2 - AGENCY,Agnes Unit,HCL NURSING,HNSI0001090,20813.03
Department of Health,Leicestershire Partnership NHS Trust,19/07/22,NURSE - BAND 5 - AGENCY,Agnes Unit,HCL NURSING,HNSI0001090,20616.10
Department of Health,Leicestershire Partnership NHS Trust,19/07/22,NURSE - BAND 2 - AGENCY,Ashby Ward (Bradgate Unit),HCL NURSING,HNSI0001090,11049.93
Department of Health,Leicestershire Partnership NHS Trust,19/07/22,NURSE - BAND 5 - AGENCY,Ashby Ward (Bradgate Unit),HCL NURSING,HNSI0001090,11979.81
Department of Health,Leicestershire Partnership NHS Trust,19/07/22,NURSE - BAND 5 - AGENCY,Aston Ward (Bradgate Unit),HCL NURSING,HNSI0001090,2235.03
Department of Health,Leicestershire Partnership NHS Trust,19/07/22,NURSE - BAND 2 - AGENCY,Beaumont Ward - Bradgate Unit,HCL NURSING,HNSI0001090,9425.16
Department of Health,Leicestershire Partnership NHS Trust,19/07/22,NURSE - BAND 5 - AGENCY,Beaumont Ward - Bradgate Unit,HCL NURSING,HNSI0001090,11435.60
Department of Health,Leicestershire Partnership NHS Trust,19/07/22,NURSE - BAND 2 - AGENCY,Belvoir Psychiatric Intensive Care Unit,HCL NURSING,HNSI0001090,3499.10
Department of Health,Leicestershire Partnership NHS Trust,19/07/22,NURSE - BAND 5 - AGENCY,Belvoir Psychiatric Intensive Care Unit,HCL NURSING,HNSI0001090,5721.02
Department of Health,Leicestershire Partnership NHS Trust,19/07/22,NURSE - BAND 2 - AGENCY,Bosworth Ward - Bradgate Unit,HCL NURSING,HNSI0001090,2682.78
Department of Health,Leicestershire Partnership NHS Trust,19/07/22,NURSE - BAND 5 - AGENCY,Bosworth Ward - Bradgate Unit,HCL NURSING,HNSI0001090,5277.05
Department of Health,Leicestershire Partnership NHS Trust,19/07/22,NURSE - BAND 2 - AGENCY,Cedar (Willows),HCL NURSING,HNSI0001090,7858.77
Department of Health,Leicestershire Partnership NHS Trust,19/07/22,NURSE - BAND 5 - AGENCY,Cedar (Willows),HCL NURSING,HNSI0001090,4511.13
Department of Health,Leicestershire Partnership NHS Trust,19/07/22,Nurse - Band 6 -Agency,City West CMHT MHSOP,HCL NURSING,HNSI0001090,1075.15
Department of Health,Leicestershire Partnership NHS Trust,19/07/22,NURSE - BAND 2 - AGENCY,Coleman Ward,HCL NURSING,HNSI0001090,4360.26
Department of Health,Leicestershire Partnership NHS Trust,19/07/22,NURSE - BAND 5 - AGENCY,Coleman Ward,HCL NURSING,HNSI0001090,6679.87
Department of Health,Leicestershire Partnership NHS Trust,19/07/22,NURSE - BAND 5 - AGENCY,Crisis Resolution,HCL NURSING,HNSI0001090,2680.64
Department of Health,Leicestershire Partnership NHS Trust,19/07/22,NURSE - BAND 2 - AGENCY,Griffin Ward (HPC),HCL NURSING,HNSI0001090,5014.86
Department of Health,Leicestershire Partnership NHS Trust,19/07/22,NURSE - BAND 5 - AGENCY,Griffin Ward (HPC),HCL NURSING,HNSI0001090,1608.98
Department of Health,Leicestershire Partnership NHS Trust,19/07/22,NURSE - BAND 2 - AGENCY,Gwendolen Ward,HCL NURSING,HNSI0001090,1100.33
Department of Health,Leicestershire Partnership NHS Trust,19/07/22,NURSE - BAND 2 - AGENCY,Heather Ward,HCL NURSING,HNSI0001090,2522.90
Department of Health,Leicestershire Partnership NHS Trust,19/07/22,NURSE - BAND 5 - AGENCY,Heather Ward,HCL NURSING,HNSI0001090,8082.70
Department of Health,Leicestershire Partnership NHS Trust,19/07/22,NURSE - BAND 2 - AGENCY,Kirby Ward,HCL NURSING,HNSI0001090,6520.56
Department of Health,Leicestershire Partnership NHS Trust,19/07/22,NURSE - BAND 5 - AGENCY,Kirby Ward,HCL NURSING,HNSI0001090,2641.88
Department of Health,Leicestershire Partnership NHS Trust,19/07/22,NURSE - BAND 2 - AGENCY,Maple Ward,HCL NURSING,HNSI0001090,4129.02
Department of Health,Leicestershire Partnership NHS Trust,19/07/22,NURSE - BAND 5 - AGENCY,Maple Ward,HCL NURSING,HNSI0001090,3045.31
Department of Health,Leicestershire Partnership NHS Trust,19/07/22,Nurse - Band 6 -Agency,Mental Health Liaison Team,HCL NURSING,HNSI0001090,1790.10
Department of Health,Leicestershire Partnership NHS Trust,19/07/22,NURSE - BAND 2 - AGENCY,Mill Lodge,HCL NURSING,HNSI0001090,9743.67
Department of Health,Leicestershire Partnership NHS Trust,19/07/22,NURSE - BAND 5 - AGENCY,Mill Lodge,HCL NURSING,HNSI0001090,3440.56
Department of Health,Leicestershire Partnership NHS Trust,19/07/22,NURSE - BAND 2 - AGENCY,Phoenix Ward (HPC),HCL NURSING,HNSI0001090,9287.72
Department of Health,Leicestershire Partnership NHS Trust,19/07/22,NURSE - BAND 5 - AGENCY,Phoenix Ward (HPC),HCL NURSING,HNSI0001090,1361.40
Department of Health,Leicestershire Partnership NHS Trust,19/07/22,NURSE - BAND 2 - AGENCY,Place Of Safety Assessment Unit,HCL NURSING,HNSI0001090,709.77
Department of Health,Leicestershire Partnership NHS Trust,19/07/22,NURSE - BAND 5 - AGENCY,Place Of Safety Assessment Unit,HCL NURSING,HNSI0001090,3220.09
Department of Health,Leicestershire Partnership NHS Trust,19/07/22,NURSE - BAND 2 - AGENCY,Stewart House,HCL NURSING,HNSI0001090,3621.37
Department of Health,Leicestershire Partnership NHS Trust,19/07/22,NURSE - BAND 5 - AGENCY,Stewart House,HCL NURSING,HNSI0001090,4459.71
Department of Health,Leicestershire Partnership NHS Trust,19/07/22,NURSE - BAND 2 - AGENCY,Sycamore (Willows),HCL NURSING,HNSI0001090,4882.48
Department of Health,Leicestershire Partnership NHS Trust,19/07/22,NURSE - BAND 5 - AGENCY,Sycamore (Willows),HCL NURSING,HNSI0001090,4060.88
Department of Health,Leicestershire Partnership NHS Trust,19/07/22,NURSE - BAND 2 - AGENCY,Thornton Ward - Bradgate Unit,HCL NURSING,HNSI0001090,6942.70
Department of Health,Leicestershire Partnership NHS Trust,19/07/22,NURSE - BAND 5 - AGENCY,Thornton Ward - Bradgate Unit,HCL NURSING,HNSI0001090,1714.99
Department of Health,Leicestershire Partnership NHS Trust,19/07/22,NURSE - BAND 2 - AGENCY,Watermead Ward (Bradgate Unit),HCL NURSING,HNSI0001090,451.31
Department of Health,Leicestershire Partnership NHS Trust,19/07/22,NURSE - BAND 5 - AGENCY,Watermead Ward (Bradgate Unit),HCL NURSING,HNSI0001090,6041.71
Department of Health,Leicestershire Partnership NHS Trust,19/07/22,NURSE - BAND 2 - AGENCY,Welford Ward,HCL NURSING,HNSI0001090,1097.89
Department of Health,Leicestershire Partnership NHS Trust,19/07/22,NURSE - BAND 5 - AGENCY,Welford Ward,HCL NURSING,HNSI0001090,2206.67
Department of Health,Leicestershire Partnership NHS Trust,19/07/22,Nurse - Band 6 -Agency,CAMHS HUB / CAP,HCL WORKFORCE SOLUTIONS,HWSI0001254,8640.91
Department of Health,Leicestershire Partnership NHS Trust,19/07/22,Nurse - Band 6 -Agency,CAMHS Waiting List Monies,HCL WORKFORCE SOLUTIONS,HWSI0001254,27849.60
Department of Health,Leicestershire Partnership NHS Trust,19/07/22,Nurse - Band 6 -Agency,Crisis Response and Home Treatment,HCL WORKFORCE SOLUTIONS,HWSI0001254,1934.86
Department of Health,Leicestershire Partnership NHS Trust,19/07/22,NURSE - BAND 2 - AGENCY,CAMHS Inpatient Service,HCL NURSING,HNSI0001082,1819.91
Department of Health,Leicestershire Partnership NHS Trust,19/07/22,NURSE - BAND 5 - AGENCY,CAMHS Inpatient Service,HCL NURSING,HNSI0001082,6958.54
Department of Health,Leicestershire Partnership NHS Trust,19/07/22,Nurse - Band 6 -Agency,CAMHS Waiting List Monies,HCL NURSING,HNSI0001082,7434.99
Department of Health,Leicestershire Partnership NHS Trust,19/07/22,NURSE - BAND 2 - AGENCY,Langley Ward ED Inpatient Service,HCL NURSING,HNSI0001082,6774.12
Department of Health,Leicestershire Partnership NHS Trust,19/07/22,NURSE - BAND 5 - AGENCY,Langley Ward ED Inpatient Service,HCL NURSING,HNSI0001082,2132.23
Department of Health,Leicestershire Partnership NHS Trust,19/07/22,NURSE - BAND 2 - AGENCY,CAMHS Inpatient Service,HCL NURSING,HNSI0001092,8581.70
Department of Health,Leicestershire Partnership NHS Trust,19/07/22,NURSE - BAND 5 - AGENCY,CAMHS Inpatient Service,HCL NURSING,HNSI0001092,6815.36
Department of Health,Leicestershire Partnership NHS Trust,19/07/22,Nurse - Band 6 -Agency,CAMHS Waiting List Monies,HCL NURSING,HNSI0001092,7325.43
Department of Health,Leicestershire Partnership NHS Trust,19/07/22,NURSE - BAND 2 - AGENCY,Langley Ward ED Inpatient Service,HCL NURSING,HNSI0001092,6607.04
Department of Health,Leicestershire Partnership NHS Trust,19/07/22,NURSE - BAND 5 - AGENCY,Langley Ward ED Inpatient Service,HCL NURSING,HNSI0001092,1855.90
Department of Health,Leicestershire Partnership NHS Trust,19/07/22,Nurse - Band 6 -Agency,CAMHS HUB / CAP,HCL WORKFORCE SOLUTIONS,HWSI0001265,8538.26
Department of Health,Leicestershire Partnership NHS Trust,19/07/22,Nurse - Band 6 -Agency,CAMHS Waiting List Monies,HCL WORKFORCE SOLUTIONS,HWSI0001265,21778.30
Department of Health,Leicestershire Partnership NHS Trust,19/07/22,Nurse - Band 6 -Agency,Crisis Response and Home Treatment,HCL WORKFORCE SOLUTIONS,HWSI0001265,2130.52
Department of Health,Leicestershire Partnership NHS Trust,19/07/22,Photocopying,Estates & Facilities Central,LEXMARK INTERNATIONAL LTD,900650303595,34571.69
Department of Health,Leicestershire Partnership NHS Trust,19/07/22,Gas,"Beaumont Leys Health Centre (P94, LPT)",TOTAL GAS & POWER LTD,272439546/22,852.95
Department of Health,Leicestershire Partnership NHS Trust,19/07/22,Gas,"Bennion Centre (including Forest Grange Day Unit) (P8, LPT)",TOTAL GAS & POWER LTD,272439546/22,9972.63
Department of Health,Leicestershire Partnership NHS Trust,19/07/22,Gas,"Bradgate Unit (including Glenvale day Unit) (P7, LPT)",TOTAL GAS & POWER LTD,272439546/22,17240.39
Department of Health,Leicestershire Partnership NHS Trust,19/07/22,Gas,Bridge Park Plaza - First Floor (LPT),TOTAL GAS & POWER LTD,272439546/22,1525.64
Department of Health,Leicestershire Partnership NHS Trust,19/07/22,Gas,"Bridge Park Road - Units 2 and 3 (P148, LPT)",TOTAL GAS & POWER LTD,272439546/22,363.17
Department of Health,Leicestershire Partnership NHS Trust,19/07/22,Gas,"Coalville Health Centre (P121, LPT)",TOTAL GAS & POWER LTD,272439546/22,609.49
Department of Health,Leicestershire Partnership NHS Trust,19/07/22,Gas,"Evington Centre (P6, LPT)",TOTAL GAS & POWER LTD,272439546/22,1223.47
Department of Health,Leicestershire Partnership NHS Trust,19/07/22,Gas,"Farm Lodge (P34, LPT)",TOTAL GAS & POWER LTD,272439546/22,114.61
Department of Health,Leicestershire Partnership NHS Trust,19/07/22,Gas,"Feilding Palmer Hospital (Lutterworth) (P131, LPT)",TOTAL GAS & POWER LTD,272439546/22,1973.42
Department of Health,Leicestershire Partnership NHS Trust,19/07/22,Gas,"Frith Cottages 3 & 4 (P36, LPT)",TOTAL GAS & POWER LTD,272439546/22,137.51
Department of Health,Leicestershire Partnership NHS Trust,19/07/22,Gas,HIS,TOTAL GAS & POWER LTD,272439546/22,69.48
Department of Health,Leicestershire Partnership NHS Trust,19/07/22,Gas,"Hawthorne Centre - Coalville (P14, LPT)",TOTAL GAS & POWER LTD,272439546/22,412.63
Department of Health,Leicestershire Partnership NHS Trust,19/07/22,Gas,"Hinckley and Bosworth Community Hospital (Sunnyside) (P133, LPT)",TOTAL GAS & POWER LTD,272439546/22,7107.30
Department of Health,Leicestershire Partnership NHS Trust,19/07/22,Gas,"Hynca Lodge (P33, LPT)",TOTAL GAS & POWER LTD,272439546/22,558.96
Department of Health,Leicestershire Partnership NHS Trust,19/07/22,Gas,"LGH - Gwendolen House (P4, LPT)",TOTAL GAS & POWER LTD,272439546/22,1343.22
Department of Health,Leicestershire Partnership NHS Trust,19/07/22,Gas,"Loughborough Hospital (P136, LPT)",TOTAL GAS & POWER LTD,272439546/22,15668.08
Department of Health,Leicestershire Partnership NHS Trust,19/07/22,Gas,Mawson House (LPT),TOTAL GAS & POWER LTD,272439546/22,361.04
Department of Health,Leicestershire Partnership NHS Trust,19/07/22,Gas,"Mett Centre (P49, LPT)",TOTAL GAS & POWER LTD,272439546/22,316.45
Department of Health,Leicestershire Partnership NHS Trust,19/07/22,Gas,"Narborough Health Centre (P117, LPT)",TOTAL GAS & POWER LTD,272439546/22,378.24
Department of Health,Leicestershire Partnership NHS Trust,19/07/22,Gas,"Neville Centre - LGH (was DSC) (P147, LPT)",TOTAL GAS & POWER LTD,272439546/22,865.99
Department of Health,Leicestershire Partnership NHS Trust,19/07/22,Gas,"OSL House (P54, LPT)",TOTAL GAS & POWER LTD,272439546/22,424.36
Department of Health,Leicestershire Partnership NHS Trust,19/07/22,Gas,"Orchard Resource Centre (P15, LPT)",TOTAL GAS & POWER LTD,272439546/22,369.40
Department of Health,Leicestershire Partnership NHS Trust,19/07/22,Gas,"Rutland Memorial Hospital (P134, LPT)",TOTAL GAS & POWER LTD,272439546/22,15394.21
Department of Health,Leicestershire Partnership NHS Trust,19/07/22,Gas,"Shepshed Health Centre (P123, LPT)",TOTAL GAS & POWER LTD,272439546/22,583.45
Department of Health,Leicestershire Partnership NHS Trust,19/07/22,Gas,"Springfield Road Health Centre (P92, LPT)",TOTAL GAS & POWER LTD,272439546/22,634.83
Department of Health,Leicestershire Partnership NHS Trust,19/07/22,Gas,"Stewart House (P61, LPT)",TOTAL GAS & POWER LTD,272439546/22,3407.69
Department of Health,Leicestershire Partnership NHS Trust,19/07/22,Gas,"Swithland House - London Road 352 (P44, LPT)",TOTAL GAS & POWER LTD,272439546/22,884.31
Department of Health,Leicestershire Partnership NHS Trust,19/07/22,Gas,"The Agnes Unit (AKA Assessment and Treatment Centre) (P85, LPT)",TOTAL GAS & POWER LTD,272439546/22,4218.52
Department of Health,Leicestershire Partnership NHS Trust,19/07/22,Gas,The Beacon,TOTAL GAS & POWER LTD,272439546/22,2086.49
Department of Health,Leicestershire Partnership NHS Trust,19/07/22,Gas,"The Cedars (P19, LPT)",TOTAL GAS & POWER LTD,272439546/22,171.81
Department of Health,Leicestershire Partnership NHS Trust,19/07/22,Gas,"The Grange 1 (P4, LPT)",TOTAL GAS & POWER LTD,272439546/22,235.65
Department of Health,Leicestershire Partnership NHS Trust,19/07/22,Gas,"The Grange 2 (P41, LPT)",TOTAL GAS & POWER LTD,272439546/22,115.70
Department of Health,Leicestershire Partnership NHS Trust,19/07/22,Gas,"The Willows - Cordelia Close (P22, LPT)",TOTAL GAS & POWER LTD,272439546/22,3950.80
Department of Health,Leicestershire Partnership NHS Trust,19/07/22,Gas,"Valentine Centre (P3, LPT)",TOTAL GAS & POWER LTD,272439546/22,1952.39
Department of Health,Leicestershire Partnership NHS Trust,19/07/22,Gas,"Westcotes Group -Westcotes House (P78, LPT)",TOTAL GAS & POWER LTD,272439546/22,1267.33
Department of Health,Leicestershire Partnership NHS Trust,19/07/22,Gas,"Winstanley Drive Health Centre (P8, LPT)",TOTAL GAS & POWER LTD,272439546/22,576.26
Department of Health,Leicestershire Partnership NHS Trust,19/07/22,NURSE - BAND 2 - AGENCY,Beechwood Ward,HCL NURSING,HNSI0001091,10226.34
Department of Health,Leicestershire Partnership NHS Trust,19/07/22,NURSE - BAND 5 - AGENCY,Beechwood Ward,HCL NURSING,HNSI0001091,6170.59
Department of Health,Leicestershire Partnership NHS Trust,19/07/22,NURSE - BAND 5 - AGENCY,City Planned Care - East,HCL NURSING,HNSI0001091,14567.07
Department of Health,Leicestershire Partnership NHS Trust,19/07/22,NURSE - BAND 5 - AGENCY,City Planned Care - West,HCL NURSING,HNSI0001091,6638.34
Department of Health,Leicestershire Partnership NHS Trust,19/07/22,NURSE - BAND 2 - AGENCY,Clarendon Ward,HCL NURSING,HNSI0001091,4670.95
Department of Health,Leicestershire Partnership NHS Trust,19/07/22,NURSE - BAND 5 - AGENCY,Clarendon Ward,HCL NURSING,HNSI0001091,2799.50
Department of Health,Leicestershire Partnership NHS Trust,19/07/22,NURSE - BAND 2 - AGENCY,Coalville Snibston Ward,HCL NURSING,HNSI0001091,4433.22
Department of Health,Leicestershire Partnership NHS Trust,19/07/22,NURSE - BAND 5 - AGENCY,Coalville Snibston Ward,HCL NURSING,HNSI0001091,2430.53
Department of Health,Leicestershire Partnership NHS Trust,19/07/22,NURSE - BAND 2 - AGENCY,Coalville Ward 2,HCL NURSING,HNSI0001091,2724.90
Department of Health,Leicestershire Partnership NHS Trust,19/07/22,NURSE - BAND 5 - AGENCY,Coalville Ward 2,HCL NURSING,HNSI0001091,3664.44
Department of Health,Leicestershire Partnership NHS Trust,19/07/22,NURSE - BAND 2 - AGENCY,Dalgliesh Ward,HCL NURSING,HNSI0001091,2216.33
Department of Health,Leicestershire Partnership NHS Trust,19/07/22,NURSE - BAND 5 - AGENCY,Dalgliesh Ward,HCL NURSING,HNSI0001091,3155.10
Department of Health,Leicestershire Partnership NHS Trust,19/07/22,NURSE - BAND 5 - AGENCY,"East Planned Care - Oadby,Wigston & Harborough",HCL NURSING,HNSI0001091,1106.66
Department of Health,Leicestershire Partnership NHS Trust,19/07/22,NURSE - BAND 2 - AGENCY,H&B Comm Hosp East Ward,HCL NURSING,HNSI0001091,4571.42
Department of Health,Leicestershire Partnership NHS Trust,19/07/22,NURSE - BAND 5 - AGENCY,H&B Comm Hosp East Ward,HCL NURSING,HNSI0001091,9220.13
Department of Health,Leicestershire Partnership NHS Trust,19/07/22,NURSE - BAND 2 - AGENCY,H&B Comm Hosp North Ward,HCL NURSING,HNSI0001091,5491.07
Department of Health,Leicestershire Partnership NHS Trust,19/07/22,NURSE - BAND 5 - AGENCY,H&B Comm Hosp North Ward,HCL NURSING,HNSI0001091,2404.58
Department of Health,Leicestershire Partnership NHS Trust,19/07/22,NURSE - BAND 2 - AGENCY,Lough Swithland Ward,HCL NURSING,HNSI0001091,2704.37
Department of Health,Leicestershire Partnership NHS Trust,19/07/22,NURSE - BAND 5 - AGENCY,Lough Swithland Ward,HCL NURSING,HNSI0001091,3063.88
Department of Health,Leicestershire Partnership NHS Trust,19/07/22,NURSE - BAND 5 - AGENCY,Non Recurrent 2012/13,HCL NURSING,HNSI0001091,944.77
Department of Health,Leicestershire Partnership NHS Trust,19/07/22,NURSE - BAND 2 - AGENCY,Rutland Ward Nursing,HCL NURSING,HNSI0001091,1721.79
Department of Health,Leicestershire Partnership NHS Trust,19/07/22,NURSE - BAND 5 - AGENCY,Rutland Ward Nursing,HCL NURSING,HNSI0001091,2949.92
Department of Health,Leicestershire Partnership NHS Trust,19/07/22,NURSE - BAND 2 - AGENCY,St Lukes Stroke Ward,HCL NURSING,HNSI0001091,2507.83
Department of Health,Leicestershire Partnership NHS Trust,19/07/22,NURSE - BAND 5 - AGENCY,St Lukes Stroke Ward,HCL NURSING,HNSI0001091,2077.21
Department of Health,Leicestershire Partnership NHS Trust,19/07/22,NURSE - BAND 2 - AGENCY,St Lukes Ward 3,HCL NURSING,HNSI0001091,1566.94
Department of Health,Leicestershire Partnership NHS Trust,19/07/22,NURSE - BAND 5 - AGENCY,St Lukes Ward 3,HCL NURSING,HNSI0001091,1473.96
Department of Health,Leicestershire Partnership NHS Trust,19/07/22,NURSE - BAND 2 - AGENCY,Wakerley Ward,HCL NURSING,HNSI0001091,1076.36
Department of Health,Leicestershire Partnership NHS Trust,19/07/22,NURSE - BAND 5 - AGENCY,Wakerley Ward,HCL NURSING,HNSI0001091,5268.85
Department of Health,Leicestershire Partnership NHS Trust,19/07/22,WIP Project Not in BS - Buildings excl Dwellings,Work in Progress,TILBURY DOUGLAS CONSTRUCTION LTD,22060312,284503.21
Department of Health,Leicestershire Partnership NHS Trust,19/07/22,WIP Project Not in BS - Buildings excl Dwellings,Work in Progress,TILBURY DOUGLAS CONSTRUCTION LTD,22060308,223401.32
Department of Health,Leicestershire Partnership NHS Trust,20/07/22,FP10'S,Adult City Drugs,NHS BUS SERVICES AUTHORITY,1000073870,29287.83
Department of Health,Leicestershire Partnership NHS Trust,20/07/22,FP10'S,Adult County Drugs,NHS BUS SERVICES AUTHORITY,1000073870,17192.14
Department of Health,Leicestershire Partnership NHS Trust,20/07/22,FP10'S,CAMHS Outpatients,NHS BUS SERVICES AUTHORITY,1000073870,7814.96
Department of Health,Leicestershire Partnership NHS Trust,20/07/22,FP10'S,Community Paediatrics,NHS BUS SERVICES AUTHORITY,1000073870,13481.30
Department of Health,Leicestershire Partnership NHS Trust,20/07/22,FP10'S,Dementia Related Drugs and Investigations,NHS BUS SERVICES AUTHORITY,1000073870,5961.49
Department of Health,Leicestershire Partnership NHS Trust,20/07/22,FP10'S,Eating Disorders Outpatient Service,NHS BUS SERVICES AUTHORITY,1000073870,4005.51
Department of Health,Leicestershire Partnership NHS Trust,20/07/22,FP10'S,Forensic Services - Community,NHS BUS SERVICES AUTHORITY,1000073870,92.60
Department of Health,Leicestershire Partnership NHS Trust,20/07/22,FP10'S,LOROS Pharmacy,NHS BUS SERVICES AUTHORITY,1000073870,1293.28
Department of Health,Leicestershire Partnership NHS Trust,20/07/22,FP10'S,Lough Swithland Ward,NHS BUS SERVICES AUTHORITY,1000073870,10.54
Department of Health,Leicestershire Partnership NHS Trust,20/07/22,FP10'S,Mental Health Liaison Team,NHS BUS SERVICES AUTHORITY,1000073870,34.63
Department of Health,Leicestershire Partnership NHS Trust,20/07/22,FP10'S,PIER Team - Early Intervention Services,NHS BUS SERVICES AUTHORITY,1000073870,12950.60
Department of Health,Leicestershire Partnership NHS Trust,20/07/22,FP10'S,Snr Med Staff (Inc Med Reps),NHS BUS SERVICES AUTHORITY,1000073870,4728.32
Department of Health,Leicestershire Partnership NHS Trust,21/07/22,Med GP Trainees,Medical Trainees,ST.HELENS & KNOWSLEY NHS TRUST,16815097,75000.00
Department of Health,Leicestershire Partnership NHS Trust,21/07/22,Rates,"Evington Centre (P6, LPT)",LEIC CITY COUNCIL,8002517107/22-23CANCEL,-44544.00
Department of Health,Leicestershire Partnership NHS Trust,21/07/22,Rates,"Evington Centre (P6, LPT)",LEIC CITY COUNCIL,8002697119/22-23,137984.00
Department of Health,Leicestershire Partnership NHS Trust,22/07/22,WIP Project Not in BS - I M & T Allocations,Work in Progress,SPIRIT DIGITAL LTD,SIN220705SDI00027,811200.00
Department of Health,Leicestershire Partnership NHS Trust,25/07/22,Cytogenetic Testing,Community Paediatrics,UHL NHS TRUST (RWE),L0261806,52782.23
Department of Health,Leicestershire Partnership NHS Trust,25/07/22,Services / Recharges from NHS Trusts,Inter Unit I & E Distribution,UHL NHS TRUST (RWE),L0261808,41233.43
Department of Health,Leicestershire Partnership NHS Trust,25/07/22,Nurse - Band 6 -Agency,AMH - Central Access Point,HCL WORKFORCE SOLUTIONS,HWSI0001275,8494.75
Department of Health,Leicestershire Partnership NHS Trust,25/07/22,Nurse - Band 6 -Agency,Adult County Charnwood CMHT - Loughborough Base,HCL WORKFORCE SOLUTIONS,HWSI0001275,1357.13
Department of Health,Leicestershire Partnership NHS Trust,25/07/22,Nurse - Band 6 -Agency,Crisis Resolution,HCL WORKFORCE SOLUTIONS,HWSI0001275,12064.64
Department of Health,Leicestershire Partnership NHS Trust,25/07/22,NURSE - BAND 2 - AGENCY,CAMHS Inpatient Service,HCL NURSING,HNSI0001096,13975.93
Department of Health,Leicestershire Partnership NHS Trust,25/07/22,NURSE - BAND 5 - AGENCY,CAMHS Inpatient Service,HCL NURSING,HNSI0001096,4199.35
Department of Health,Leicestershire Partnership NHS Trust,25/07/22,Nurse - Band 6 -Agency,CAMHS Waiting List Monies,HCL NURSING,HNSI0001096,6704.39
Department of Health,Leicestershire Partnership NHS Trust,25/07/22,NURSE - BAND 2 - AGENCY,Langley Ward ED Inpatient Service,HCL NURSING,HNSI0001096,4687.88
Department of Health,Leicestershire Partnership NHS Trust,25/07/22,NURSE - BAND 5 - AGENCY,Langley Ward ED Inpatient Service,HCL NURSING,HNSI0001096,5817.55
Department of Health,Leicestershire Partnership NHS Trust,25/07/22,Nurse - Band 6 -Agency,CAMHS HUB / CAP,HCL WORKFORCE SOLUTIONS,HWSI0001277,9200.74
Department of Health,Leicestershire Partnership NHS Trust,25/07/22,Nurse - Band 6 -Agency,CAMHS Waiting List Monies,HCL WORKFORCE SOLUTIONS,HWSI0001277,20711.55
Department of Health,Leicestershire Partnership NHS Trust,25/07/22,Nurse - Band 6 -Agency,Crisis Response and Home Treatment,HCL WORKFORCE SOLUTIONS,HWSI0001277,1661.81
Department of Health,Leicestershire Partnership NHS Trust,25/07/22,Nurse - Band 6 -Agency,AMH - Central Access Point,HCL NURSING,HNSI0001094,2791.22
Department of Health,Leicestershire Partnership NHS Trust,25/07/22,Nurse - Band 6 -Agency,Adult County West Leicestershire CMHT,HCL NURSING,HNSI0001094,2159.87
Department of Health,Leicestershire Partnership NHS Trust,25/07/22,NURSE - BAND 2 - AGENCY,Agnes Unit,HCL NURSING,HNSI0001094,22939.94
Department of Health,Leicestershire Partnership NHS Trust,25/07/22,NURSE - BAND 5 - AGENCY,Agnes Unit,HCL NURSING,HNSI0001094,21860.61
Department of Health,Leicestershire Partnership NHS Trust,25/07/22,NURSE - BAND 2 - AGENCY,Ashby Ward (Bradgate Unit),HCL NURSING,HNSI0001094,7432.49
Department of Health,Leicestershire Partnership NHS Trust,25/07/22,NURSE - BAND 5 - AGENCY,Ashby Ward (Bradgate Unit),HCL NURSING,HNSI0001094,10798.53
Department of Health,Leicestershire Partnership NHS Trust,25/07/22,NURSE - BAND 5 - AGENCY,Aston Ward (Bradgate Unit),HCL NURSING,HNSI0001094,2137.72
Department of Health,Leicestershire Partnership NHS Trust,25/07/22,NURSE - BAND 2 - AGENCY,Beaumont Ward - Bradgate Unit,HCL NURSING,HNSI0001094,8421.46
Department of Health,Leicestershire Partnership NHS Trust,25/07/22,NURSE - BAND 5 - AGENCY,Beaumont Ward - Bradgate Unit,HCL NURSING,HNSI0001094,12630.74
Department of Health,Leicestershire Partnership NHS Trust,25/07/22,NURSE - BAND 2 - AGENCY,Belvoir Psychiatric Intensive Care Unit,HCL NURSING,HNSI0001094,7253.67
Department of Health,Leicestershire Partnership NHS Trust,25/07/22,NURSE - BAND 5 - AGENCY,Belvoir Psychiatric Intensive Care Unit,HCL NURSING,HNSI0001094,6066.11
Department of Health,Leicestershire Partnership NHS Trust,25/07/22,NURSE - BAND 2 - AGENCY,Bosworth Ward - Bradgate Unit,HCL NURSING,HNSI0001094,3917.11
Department of Health,Leicestershire Partnership NHS Trust,25/07/22,NURSE - BAND 5 - AGENCY,Bosworth Ward - Bradgate Unit,HCL NURSING,HNSI0001094,8017.83
Department of Health,Leicestershire Partnership NHS Trust,25/07/22,NURSE - BAND 2 - AGENCY,Bradgate Unit Site Services,HCL NURSING,HNSI0001094,1326.57
Department of Health,Leicestershire Partnership NHS Trust,25/07/22,NURSE - BAND 2 - AGENCY,Cedar (Willows),HCL NURSING,HNSI0001094,4404.25
Department of Health,Leicestershire Partnership NHS Trust,25/07/22,NURSE - BAND 5 - AGENCY,Cedar (Willows),HCL NURSING,HNSI0001094,2803.93
Department of Health,Leicestershire Partnership NHS Trust,25/07/22,Nurse - Band 6 -Agency,City West CMHT MHSOP,HCL NURSING,HNSI0001094,1056.00
Department of Health,Leicestershire Partnership NHS Trust,25/07/22,NURSE - BAND 2 - AGENCY,Coleman Ward,HCL NURSING,HNSI0001094,3196.45
Department of Health,Leicestershire Partnership NHS Trust,25/07/22,NURSE - BAND 5 - AGENCY,Coleman Ward,HCL NURSING,HNSI0001094,6149.13
Department of Health,Leicestershire Partnership NHS Trust,25/07/22,NURSE - BAND 5 - AGENCY,Crisis Resolution,HCL NURSING,HNSI0001094,2246.03
Department of Health,Leicestershire Partnership NHS Trust,25/07/22,Nurse - Band 6 -Agency,Crisis Resolution,HCL NURSING,HNSI0001094,337.35
Department of Health,Leicestershire Partnership NHS Trust,25/07/22,NURSE - BAND 2 - AGENCY,Griffin Ward (HPC),HCL NURSING,HNSI0001094,3924.28
Department of Health,Leicestershire Partnership NHS Trust,25/07/22,NURSE - BAND 5 - AGENCY,Griffin Ward (HPC),HCL NURSING,HNSI0001094,3576.01
Department of Health,Leicestershire Partnership NHS Trust,25/07/22,NURSE - BAND 2 - AGENCY,Gwendolen Ward,HCL NURSING,HNSI0001094,5369.38
Department of Health,Leicestershire Partnership NHS Trust,25/07/22,NURSE - BAND 5 - AGENCY,Gwendolen Ward,HCL NURSING,HNSI0001094,3045.23
Department of Health,Leicestershire Partnership NHS Trust,25/07/22,NURSE - BAND 2 - AGENCY,Heather Ward,HCL NURSING,HNSI0001094,1157.14
Department of Health,Leicestershire Partnership NHS Trust,25/07/22,NURSE - BAND 5 - AGENCY,Heather Ward,HCL NURSING,HNSI0001094,8631.15
Department of Health,Leicestershire Partnership NHS Trust,25/07/22,NURSE - BAND 2 - AGENCY,Kirby Ward,HCL NURSING,HNSI0001094,5663.29
Department of Health,Leicestershire Partnership NHS Trust,25/07/22,NURSE - BAND 5 - AGENCY,Kirby Ward,HCL NURSING,HNSI0001094,3288.52
Department of Health,Leicestershire Partnership NHS Trust,25/07/22,NURSE - BAND 2 - AGENCY,Maple Ward,HCL NURSING,HNSI0001094,5162.42
Department of Health,Leicestershire Partnership NHS Trust,25/07/22,NURSE - BAND 5 - AGENCY,Maple Ward,HCL NURSING,HNSI0001094,3395.74
Department of Health,Leicestershire Partnership NHS Trust,25/07/22,Nurse - Band 6 -Agency,Mental Health Liaison Team,HCL NURSING,HNSI0001094,1790.10
Department of Health,Leicestershire Partnership NHS Trust,25/07/22,NURSE - BAND 2 - AGENCY,Mill Lodge,HCL NURSING,HNSI0001094,6193.62
Department of Health,Leicestershire Partnership NHS Trust,25/07/22,NURSE - BAND 5 - AGENCY,Mill Lodge,HCL NURSING,HNSI0001094,6134.63
Department of Health,Leicestershire Partnership NHS Trust,25/07/22,NURSE - BAND 2 - AGENCY,Phoenix Ward (HPC),HCL NURSING,HNSI0001094,7915.27
Department of Health,Leicestershire Partnership NHS Trust,25/07/22,NURSE - BAND 5 - AGENCY,Phoenix Ward (HPC),HCL NURSING,HNSI0001094,2063.74
Department of Health,Leicestershire Partnership NHS Trust,25/07/22,NURSE - BAND 5 - AGENCY,Place Of Safety Assessment Unit,HCL NURSING,HNSI0001094,3512.36
Department of Health,Leicestershire Partnership NHS Trust,25/07/22,NURSE - BAND 2 - AGENCY,Stewart House,HCL NURSING,HNSI0001094,3101.31
Department of Health,Leicestershire Partnership NHS Trust,25/07/22,NURSE - BAND 5 - AGENCY,Stewart House,HCL NURSING,HNSI0001094,7211.94
Department of Health,Leicestershire Partnership NHS Trust,25/07/22,NURSE - BAND 2 - AGENCY,Sycamore (Willows),HCL NURSING,HNSI0001094,3104.75
Department of Health,Leicestershire Partnership NHS Trust,25/07/22,NURSE - BAND 5 - AGENCY,Sycamore (Willows),HCL NURSING,HNSI0001094,4158.13
Department of Health,Leicestershire Partnership NHS Trust,25/07/22,NURSE - BAND 2 - AGENCY,Thornton Ward - Bradgate Unit,HCL NURSING,HNSI0001094,1604.94
Department of Health,Leicestershire Partnership NHS Trust,25/07/22,NURSE - BAND 5 - AGENCY,Thornton Ward - Bradgate Unit,HCL NURSING,HNSI0001094,1560.13
Department of Health,Leicestershire Partnership NHS Trust,25/07/22,NURSE - BAND 2 - AGENCY,Watermead Ward (Bradgate Unit),HCL NURSING,HNSI0001094,188.36
Department of Health,Leicestershire Partnership NHS Trust,25/07/22,NURSE - BAND 5 - AGENCY,Watermead Ward (Bradgate Unit),HCL NURSING,HNSI0001094,8252.72
Department of Health,Leicestershire Partnership NHS Trust,25/07/22,NURSE - BAND 2 - AGENCY,Welford Ward,HCL NURSING,HNSI0001094,3045.88
Department of Health,Leicestershire Partnership NHS Trust,25/07/22,NURSE - BAND 5 - AGENCY,Welford Ward,HCL NURSING,HNSI0001094,1939.65
Department of Health,Leicestershire Partnership NHS Trust,25/07/22,Leased / Hired Vehicles,Adult County South Leicestershire CMHT,LEASEPLAN,510261251,409.87
Department of Health,Leicestershire Partnership NHS Trust,25/07/22,Leased / Hired Vehicles,Autism,LEASEPLAN,510261251,1916.88
Department of Health,Leicestershire Partnership NHS Trust,25/07/22,Prep_ LT1y -Prepayments Lease Cars,Balance Sheet Collection,LEASEPLAN,510261251,22281.83
Department of Health,Leicestershire Partnership NHS Trust,25/07/22,Trade_Drs_LT1y -Lease Cars Invoicing Contrl Ac.,Balance Sheet Collection,LEASEPLAN,510261251,1327.50
Department of Health,Leicestershire Partnership NHS Trust,25/07/22,VAT_Drs _ LT1y -VAT Contracted Out Services Input Tax,Balance Sheet Collection,LEASEPLAN,510261251,1545.34
Department of Health,Leicestershire Partnership NHS Trust,25/07/22,Leased / Hired Vehicles,CHS - Head of Nursing,LEASEPLAN,510261251,20.00
Department of Health,Leicestershire Partnership NHS Trust,25/07/22,Leased / Hired Vehicles,COVID 19,LEASEPLAN,510261251,472.36
Department of Health,Leicestershire Partnership NHS Trust,25/07/22,Leased / Hired Vehicles,City 0 – 19 Central Report,LEASEPLAN,510261251,20.00
Department of Health,Leicestershire Partnership NHS Trust,25/07/22,Leased / Hired Vehicles,City Planned Care - East - Therapy,LEASEPLAN,510261251,20.00
Department of Health,Leicestershire Partnership NHS Trust,25/07/22,Leased / Hired Vehicles,City Planned Care - West,LEASEPLAN,510261251,773.90
Department of Health,Leicestershire Partnership NHS Trust,25/07/22,Leased / Hired Vehicles,City West CMHT MHSOP,LEASEPLAN,510261251,10.00
Department of Health,Leicestershire Partnership NHS Trust,25/07/22,Leased / Hired Vehicles,Diana Complex Care Team,LEASEPLAN,510261251,15.00
Department of Health,Leicestershire Partnership NHS Trust,25/07/22,Leased / Hired Vehicles,"East Planned Care - Melton,Syston,Rutland",LEASEPLAN,510261251,20.00
Department of Health,Leicestershire Partnership NHS Trust,25/07/22,Leased / Hired Vehicles,MHSOP Inpatient Therapy - Evington,LEASEPLAN,510261251,25.00
Department of Health,Leicestershire Partnership NHS Trust,25/07/22,Leased / Hired Vehicles,Mental Health Triage Car,LEASEPLAN,510261251,20.00
Department of Health,Leicestershire Partnership NHS Trust,25/07/22,Leased / Hired Vehicles,PIER Team - Early Intervention Services,LEASEPLAN,510261251,591.60
Department of Health,Leicestershire Partnership NHS Trust,25/07/22,Leased / Hired Vehicles,Respiratory Service,LEASEPLAN,510261251,25.00
Department of Health,Leicestershire Partnership NHS Trust,25/07/22,Leased / Hired Vehicles,School Age Immunisation and Vaccinations,LEASEPLAN,510261251,335.72
Department of Health,Leicestershire Partnership NHS Trust,25/07/22,Crs_NHS_LT1y -Resus Inventory Supplied.,Balance Sheet Collection,SUPPLY CHAIN CO LTD,1123083599,30489.97
Department of Health,Leicestershire Partnership NHS Trust,26/07/22,Payroll Deductions -NEST EES Pensions,Balance Sheet Collection,NEST,P03DEDS-313-22/23,14943.92
Department of Health,Leicestershire Partnership NHS Trust,26/07/22,Payroll Deductions -NEST ERS Pensions,Balance Sheet Collection,NEST,P03DEDS-313-22/23,11207.89
Department of Health,Leicestershire Partnership NHS Trust,26/07/22,Drugs,Adult City Drugs,JANSSEN-CILAG LTD,930837847,11338.33
Department of Health,Leicestershire Partnership NHS Trust,26/07/22,Drugs,Adult County Drugs,JANSSEN-CILAG LTD,930837847,17007.49
Department of Health,Leicestershire Partnership NHS Trust,26/07/22,Drugs,Adult City Drugs,JANSSEN-CILAG LTD,930861821,10368.13
Department of Health,Leicestershire Partnership NHS Trust,26/07/22,Drugs,Adult County Drugs,JANSSEN-CILAG LTD,930861821,15552.20
Department of Health,Leicestershire Partnership NHS Trust,26/07/22,Computer Software,FM Transformation,BESA PUBLICATIONS LTD,I0774,54118.08
Department of Health,Leicestershire Partnership NHS Trust,27/07/22,NURSE - BAND 2 - AGENCY,Beechwood Ward,HCL NURSING,HNSI0001095,9331.86
Department of Health,Leicestershire Partnership NHS Trust,27/07/22,NURSE - BAND 5 - AGENCY,Beechwood Ward,HCL NURSING,HNSI0001095,6765.05
Department of Health,Leicestershire Partnership NHS Trust,27/07/22,NURSE - BAND 3 - AGENCY,CHS Phlebotomy Service,HCL NURSING,HNSI0001095,299.54
Department of Health,Leicestershire Partnership NHS Trust,27/07/22,NURSE - BAND 5 - AGENCY,City Planned Care - East,HCL NURSING,HNSI0001095,13117.35
Department of Health,Leicestershire Partnership NHS Trust,27/07/22,NURSE - BAND 5 - AGENCY,City Planned Care - West,HCL NURSING,HNSI0001095,9964.09
Department of Health,Leicestershire Partnership NHS Trust,27/07/22,NURSE - BAND 2 - AGENCY,Clarendon Ward,HCL NURSING,HNSI0001095,7182.84
Department of Health,Leicestershire Partnership NHS Trust,27/07/22,NURSE - BAND 5 - AGENCY,Clarendon Ward,HCL NURSING,HNSI0001095,3654.33
Department of Health,Leicestershire Partnership NHS Trust,27/07/22,NURSE - BAND 2 - AGENCY,Coalville Snibston Ward,HCL NURSING,HNSI0001095,2267.35
Department of Health,Leicestershire Partnership NHS Trust,27/07/22,NURSE - BAND 5 - AGENCY,Coalville Snibston Ward,HCL NURSING,HNSI0001095,3084.80
Department of Health,Leicestershire Partnership NHS Trust,27/07/22,NURSE - BAND 2 - AGENCY,Coalville Ward 2,HCL NURSING,HNSI0001095,3315.17
Department of Health,Leicestershire Partnership NHS Trust,27/07/22,NURSE - BAND 5 - AGENCY,Coalville Ward 2,HCL NURSING,HNSI0001095,2137.71
Department of Health,Leicestershire Partnership NHS Trust,27/07/22,NURSE - BAND 2 - AGENCY,Dalgliesh Ward,HCL NURSING,HNSI0001095,593.30
Department of Health,Leicestershire Partnership NHS Trust,27/07/22,NURSE - BAND 5 - AGENCY,Dalgliesh Ward,HCL NURSING,HNSI0001095,3615.68
Department of Health,Leicestershire Partnership NHS Trust,27/07/22,NURSE - BAND 2 - AGENCY,H&B Comm Hosp East Ward,HCL NURSING,HNSI0001095,1129.32
Department of Health,Leicestershire Partnership NHS Trust,27/07/22,NURSE - BAND 5 - AGENCY,H&B Comm Hosp East Ward,HCL NURSING,HNSI0001095,6946.63
Department of Health,Leicestershire Partnership NHS Trust,27/07/22,NURSE - BAND 2 - AGENCY,H&B Comm Hosp North Ward,HCL NURSING,HNSI0001095,5315.52
Department of Health,Leicestershire Partnership NHS Trust,27/07/22,NURSE - BAND 5 - AGENCY,H&B Comm Hosp North Ward,HCL NURSING,HNSI0001095,2061.04
Department of Health,Leicestershire Partnership NHS Trust,27/07/22,NURSE - BAND 2 - AGENCY,Lough Swithland Ward,HCL NURSING,HNSI0001095,1331.00
Department of Health,Leicestershire Partnership NHS Trust,27/07/22,NURSE - BAND 5 - AGENCY,Lough Swithland Ward,HCL NURSING,HNSI0001095,2157.24
Department of Health,Leicestershire Partnership NHS Trust,27/07/22,NURSE - BAND 2 - AGENCY,Rutland Ward Nursing,HCL NURSING,HNSI0001095,4375.00
Department of Health,Leicestershire Partnership NHS Trust,27/07/22,NURSE - BAND 5 - AGENCY,Rutland Ward Nursing,HCL NURSING,HNSI0001095,3891.57
Department of Health,Leicestershire Partnership NHS Trust,27/07/22,NURSE - BAND 2 - AGENCY,St Lukes Stroke Ward,HCL NURSING,HNSI0001095,3883.53
Department of Health,Leicestershire Partnership NHS Trust,27/07/22,NURSE - BAND 5 - AGENCY,St Lukes Stroke Ward,HCL NURSING,HNSI0001095,439.96
Department of Health,Leicestershire Partnership NHS Trust,27/07/22,NURSE - BAND 2 - AGENCY,St Lukes Ward 3,HCL NURSING,HNSI0001095,1267.76
Department of Health,Leicestershire Partnership NHS Trust,27/07/22,NURSE - BAND 5 - AGENCY,St Lukes Ward 3,HCL NURSING,HNSI0001095,3237.54
Department of Health,Leicestershire Partnership NHS Trust,27/07/22,NURSE - BAND 2 - AGENCY,Wakerley Ward,HCL NURSING,HNSI0001095,1285.95
Department of Health,Leicestershire Partnership NHS Trust,27/07/22,NURSE - BAND 5 - AGENCY,Wakerley Ward,HCL NURSING,HNSI0001095,2989.88
Department of Health,Leicestershire Partnership NHS Trust,27/07/22,Rent,"St Peters Health Center (Part 1st and 2nd floors) (P66, LPT)",LEICESTER LIFT CO,LEP1-SI1047,30082.84
Department of Health,Leicestershire Partnership NHS Trust,28/07/22,Pharmacy Payables Control A/C (LPT JAC),Balance Sheet Collection,JANSSEN-CILAG LTD,930865599,26382.05
Department of Health,Leicestershire Partnership NHS Trust,28/07/22,Rent,"St Peters Health Center (Part 1st and 2nd floors) (P66, LPT)",LEICESTER LIFT CO,LEP1/SI0919,27433.45
Department of Health,Leicestershire Partnership NHS Trust,28/07/22,Med Trainees - FY1,Medical Trainees,UHL NHS TRUST (RWE),L0262038,30690.79
Department of Health,Leicestershire Partnership NHS Trust,28/07/22,Electricity,"Belvoir Intensive Care Unit (P7, LPT)",UHL NHS TRUST (RWE),L0262041,2108.98
Department of Health,Leicestershire Partnership NHS Trust,28/07/22,Electricity,"Bennion Centre (including Forest Grange Day Unit) (P8, LPT)",UHL NHS TRUST (RWE),L0262041,7425.09
Department of Health,Leicestershire Partnership NHS Trust,28/07/22,Electricity,"Bradgate Unit (including Glenvale day Unit) (P7, LPT)",UHL NHS TRUST (RWE),L0262041,20425.38
Department of Health,Leicestershire Partnership NHS Trust,28/07/22,Contract : Premises Security,Estates & Facilities Central,UHL NHS TRUST (RWE),L0262041,2295.52
Department of Health,Leicestershire Partnership NHS Trust,28/07/22,Electricity,"Herschel Prins (P9, LPT)",UHL NHS TRUST (RWE),L0262041,5370.74
Department of Health,Leicestershire Partnership NHS Trust,28/07/22,Electricity,"Leicester Frith - Utilities (P38, LPT)",UHL NHS TRUST (RWE),L0262041,4218.60
Department of Health,Leicestershire Partnership NHS Trust,28/07/22,Electricity,Modular Training Building,UHL NHS TRUST (RWE),L0262041,1000.89
Department of Health,Leicestershire Partnership NHS Trust,28/07/22,Electricity,Pharmacy Portacabin,UHL NHS TRUST (RWE),L0262041,1546.15
Department of Health,Leicestershire Partnership NHS Trust,28/07/22,Services / Recharges from NHS Trusts,UHL Expenditure Contract,UHL NHS TRUST (RWE),L0262041,5552.23
